Workbook

Sheet Lisa 3
B1: Lisa 2 üürilepingu nr KPJ-4/2020-307 muudatusele nr 1 | J1: Lisa 3 üürilepingule nr KPJ-4/2020-307
A3: Üür ja kõrvalteenuste tasu 01.12.2022 - 31.12.2024
C5: Üürnik | D5: Sotsiaalkindlustusamet
C6: Üüripinna aadress | D6: Akadeemia tn 2, Pärnu
D8: Üüripind (hooned) | E8: 586.6 | F8: m2
D9: Territoorium | E9: 738 | F9: m2
E11: 01.12.2022 - 31.12.2023 | G11: 01.01.2024 - 31.12.2024
B12: Üüriteenused ja üür | E12: EUR/m2 | F12: summa kuus | G12: EUR/m2 | H12: summa kuus | I12: Muutmise alus | J12: Märkused
C13: Kapitalikomponent (bilansiline) | E13: =F13/$E$8 -> 2.07 | F13: ='Annuiteedigraafik BIL'!F17 -> 1,216.76 | G13: =H13/$E$8 -> 2.07 | H13: ='Annuiteedigraafik BIL'!F30 -> 1,216.76 | I13: Ei indekseerita
C14: Kapitalikomponent (parendustööd lisa 6.1 alusel) | E14: =F14/$E$8 -> 18.55 | F14: ='Annuiteedigraafik PT'!F14 -> 10,878.57 | G14: =H14/$E$8 -> 18.55 | H14: ='Annuiteedigraafik PT'!F27 -> 10,878.57 | J14: Tasutakse kuni 30.11.2032
C15: Kapitalikomponent (tavasisustus lisa 6.1 alusel) | E15: 1.88 | F15: ='Annuiteedigraafik TS'!F14 -> 1,102.64 | G15: 1.88 | H15: ='Annuiteedigraafik TS'!F27 -> 1,102.64 | J15: Tasutakse kuni 30.11.2032
B16: 400 | C16: Remonttööd | E16: 1.67 | F16: =ROUND(E16*$E$8,4) -> 979.54 | G16: 1.67 | H16: 979.54
B17: 400 | C17: Remonttööd (tavasisustus lisa 6.1 alusel) | E17: =ROUND(F17/$E$8,4) -> 0.56 | F17: 326.86 | G17: 0.56 | H17: 326.86
B18: 100 | C18: Kinnisvara haldamine (haldusteenus) | E18: 0.35 | F18: =E18*$E$8 -> 205.29 | G18: 0.36 | H18: =G18*$E$8 -> 211.45 | I18: Indekseerimine* alates 01.01.2024.a, 31.dets THI, max 3% aastas
B19: 200 | C19: Tehnohooldus | E19: 0.84 | F19: =E19*$E$8 -> 494.33 | G19: 0.87 | H19: =G19*$E$8 -> 509.16
B20: 500 | C20: Omanikukohustused | E20: 0.02 | F20: =E20*$E$8 -> 11.73 | G20: 0.02 | H20: 12.08
C21: ÜÜR KOKKU | E21: =SUM(E13:E20) -> 25.94 | F21: =SUM(F13:F20) -> 15,215.72 | G21: =SUM(G13:G20) -> 25.98 | H21: =SUM(H13:H20) -> 15,237.06
B23: Kõrvalteenused ja kõrvalteenuste tasud | E23: EUR/m2 | F23: summa kuus | G23: EUR/m2 | H23: summa kuus | I23: Muutmise alus | J23: Märkused
B24: 300 | C24: Heakord (310, 320, 360 - väliheakord) | E24: 0.29 | F24: =E24*$E$8 -> 169.82 | G24: =H24/$E$8 -> 0.29 | H24: 172.33 | I24: Teenuse hinna muutus | J24: Kõrvalteenuste eest tasumine tegelike kulude alusel, esitatud kulude prognoos
B25: 300 | C25: Heakord (330, 340, 350, 390 - siseheakord) | E25: 1.72 | F25: =E25*$E$8 -> 1,011.40 | G25: =H25/$E$8 -> 1.78 | H25: 1,045.28
B26: 600 | C26: Tarbimisteenused
C27: 610 | D27: Elektrienergia | E27: 1.36 | F27: =E27*$E$8 -> 796.43 | G27: 1.97 | H27: 1,156.97 | I27: Teenuse hinna, tarbimise muutus
C28: 620 | D28: Küte (soojusenergia) | E28: 0.57 | F28: =E28*$E$8 -> 334.60 | G28: 1.11 | H28: 650.63
C29: 630 | D29: Vesi ja kanalisatsioon | E29: 0.04 | F29: =E29*$E$8 -> 25.22 | G29: 0.06 | H29: 33.71
B30: 700 | C30: Tugiteenused (720 parkimine) | E30: 0.00 | F30: =E30*$E$8 -> 0.00 | G30: 0.00 | H30: 0.00 | I30: Teenuse hinna muutus
B31: 700 | C31: Tugiteenused (750 - kohvimasina rent ja hooldus) | E31: 0.34 | F31: 198.70 | G31: 0.25 | H31: 146.66
B32: 700 | C32: Tugiteenused (710, 740 - valveteenus, hoone sildid, esmaabikomplektid) | E32: 1.78 | F32: =E32*$E$8 -> 1,045.69 | G32: 1.99 | H32: 1,165.68
C33: KÕRVALTEENUSTE TASUD KOKKU | E33: =SUM(E24:E32) -> 6.11 | F33: =SUM(F24:F32) -> 3,581.86 | G33: =SUM(G24:G32) -> 7.45 | H33: =SUM(H24:H32) -> 4,371.25
B35: Üür ja kõrvalteenuste tasud kokku ilma käibemaksuta (kuus) | E35: =E33+E21 -> 32.05 | F35: =ROUND(F33+F21,2) -> 18,797.58 | G35: =G33+G21 -> 33.43 | H35: =ROUND(H33+H21,2) -> 19,608.31
B36: Käibemaks | D36: 20% | E36: =E35*D36 -> 6.41 | F36: =ROUND(F35*D36,2) -> 3,759.52 | G36: =G35*D36 -> 6.69 | H36: =ROUND(H35*D36,2) -> 3,921.66
B37: ÜÜR JA KÕRVALTEENUSTE TASUD KOOS KÄIBEMAKSUGA (kuus) | E37: =E36+E35 -> 38.46 | F37: =F36+F35 -> 22,557.10 | G37: =G36+G35 -> 40.12 | H37: =H36+H35 -> 23,529.97
B38: ÜÜR JA KÕRVALTEENUSTE TASUD KÄIBEMAKSUTA (perioodil) | E38: 13 kuud | F38: =F35*E38 -> 244,368.54 | G38: 12 kuud | H38: =H35*G38 -> 235,299.72
B39: ÜÜR JA KÕRVALTEENUSTE TASUD KOOS KÄIBEMAKSUGA (perioodil) | E39: 13 kuud | F39: =F37*E39 -> 293,242.30 | G39: 12 kuud | H39: =H37*G39 -> 282,359.64
B41: *indekseeritakse vastavalt eritingimuste punktile 6.6 ning tüüptingimuste punktidele 3.14 ja 3.16: Uus üüri summa kuus saadakse nii, et olemasolev üüri summa kuus korrutatakse läbi 31.12 seisuga lõppeva aastase perioodi kohta avaldatud THI protsentuaalse muutusega või kui 31.12 THI aastane muutus on suurem kui 3% (nt 3,2%), siis korrutatakse läbi indekseerimise piirmääraga 3%. Indekseerimise arvutuse näide uue üüri summa leidmiseks: olemasolev üür kuus 150 eurot, 31.12 THI aastane muutus 3,2% (piirmäär 3%). Olemasolev üüri summa 150 eurot * 3% = uus üüri summa kuus 154,5 eurot.
B44: Üürileandja: | E44: Üürnik:
B46: (allkirjastatud digitaalselt) | E46: (allkirjastatud digitaalselt)

Sheet Annuiteedigraafik BIL
K3: Üürnik | L3: Üüripind
B4: Kapitalikomponendi annuiteetmaksegraafik - | F4: Akadeemia tn 2, Pärnu | K4: üürnik 1 | L4: 586.6 | M4: =L4/$L$9 -> 41.8%
K5: üürnik 2 | L5: 0.0 | M5: =L5/$L$9 -> 0.0%
B6: Maksete algus | E6: 2022-12-01 | K6: üürnik 3 | L6: 0.0 | M6: =L6/$L$9 -> 0.0%
B7: Maksete arv | E7: 120 | F7: kuud | K7: üürnik 4 | L7: 0.0 | M7: =L7/$L$9 -> 0.0%
B8: Kinnistu jääkmaksumus | D8: =E6-1 -> 2022-11-30 | E8: 476,786 | F8: EUR (km-ta) | K8: üürnik 5 | L8: 0.0 | M8: =L8/$L$9 -> 0.0%
B9: Kinnistu jääkmaksumus | D9: =EDATE(D8,E7) -> 2032-11-30 | E9: 254,470 | F9: EUR (km-ta) | K9: Kokku: | L9: 1,402.3
B10: Üürniku osakaal | E10: =M4 -> 41.83%
B11: Kapitali algväärtus | E11: =ROUND(E8*E$10,2) -> 199,428.80 | F11: EUR (km-ta)
B12: Kapitali lõppväärtus | E12: =ROUND(E9*E$10,2) -> 106,439.15 | F12: EUR (km-ta)
B13: Kapitali tulumäär 2022 I pa | E13: 3.4%
A16: Kuupäev | B16: Jrk nr | C16: Algjääk | D16: Intress | E16: Põhiosa | F16: Kap.komponent | G16: Lõppjääk
A17: =E6 -> 2022-12-01 | B17: 1 | C17: =E11 -> 199,428.80 | D17: =ROUND(IPMT($E$13/12,B17,$E$7,-$E$11,$E$12,0),2) -> 565.05 | E17: =ROUND(PPMT($E$13/12,B17,$E$7,-$E$11,$E$12,0),2) -> 651.72 | F17: =ROUND(PMT($E$13/12,E7,-E11,E12),2) -> 1,216.76 | G17: =C17-E17 -> 198,777.08
A18: =EDATE(A17,1) -> 2023-01-01 | B18: 2 | C18: =G17 -> 198,777.08 | D18: =ROUND(C18*$E$13/12,2) -> 563.20 | E18: =F18-D18 -> 653.56 | F18: =F17 -> 1,216.76 | G18: =C18-E18 -> 198,123.52
A19: =EDATE(A18,1) -> 2023-02-01 | B19: 3 | C19: =G18 -> 198,123.52 | D19: 561.35 | E19: =F19-D19 -> 655.41 | F19: =F18 -> 1,216.76 | G19: 197,468.11
A20: =EDATE(A19,1) -> 2023-03-01 | B20: 4 | C20: =G19 -> 197,468.11 | D20: 559.49 | E20: =F20-D20 -> 657.27 | F20: 1,216.76 | G20: 196,810.84
A21: 2023-04-01 | B21: 5 | C21: 196,810.84 | D21: 557.63 | E21: 659.13 | F21: 1,216.76 | G21: 196,151.71
A22: 2023-05-01 | B22: 6 | C22: 196,151.71 | D22: 555.76 | E22: 661.00 | F22: 1,216.76 | G22: 195,490.71
A23: 2023-06-01 | B23: 7 | C23: 195,490.71 | D23: 553.89 | E23: 662.87 | F23: 1,216.76 | G23: 194,827.84
A24: =EDATE(A23,1) -> 2023-07-01 | B24: 8 | C24: 194,827.84 | D24: 552.01 | E24: 664.75 | F24: 1,216.76 | G24: 194,163.09
A25: 2023-08-01 | B25: 9 | C25: 194,163.09 | D25: 550.13 | E25: 666.63 | F25: 1,216.76 | G25: 193,496.46
A26: 2023-09-01 | B26: 10 | C26: 193,496.46 | D26: 548.24 | E26: 668.52 | F26: 1,216.76 | G26: 192,827.94
A27: 2023-10-01 | B27: 11 | C27: 192,827.94 | D27: 546.35 | E27: 670.41 | F27: 1,216.76 | G27: 192,157.53
A28: 2023-11-01 | B28: 12 | C28: 192,157.53 | D28: 544.45 | E28: 672.31 | F28: 1,216.76 | G28: 191,485.22
A29: 2023-12-01 | B29: 13 | C29: 191,485.22 | D29: 542.54 | E29: 674.22 | F29: 1,216.76 | G29: 190,811.00
A30: 2024-01-01 | B30: 14 | C30: 190,811.00 | D30: 540.63 | E30: 676.13 | F30: 1,216.76 | G30: 190,134.87
A31: 2024-02-01 | B31: 15 | C31: 190,134.87 | D31: 538.72 | E31: 678.04 | F31: 1,216.76 | G31: 189,456.83
A32: 2024-03-01 | B32: 16 | C32: 189,456.83 | D32: 536.79 | E32: 679.97 | F32: 1,216.76 | G32: 188,776.86
A33: 2024-04-01 | B33: 17 | C33: 188,776.86 | D33: 534.87 | E33: 681.89 | F33: 1,216.76 | G33: 188,094.97
A34: 2024-05-01 | B34: 18 | C34: 188,094.97 | D34: 532.94 | E34: 683.82 | F34: 1,216.76 | G34: 187,411.15
A35: 2024-06-01 | B35: 19 | C35: 187,411.15 | D35: 531.00 | E35: 685.76 | F35: 1,216.76 | G35: 186,725.39
A36: 2024-07-01 | B36: 20 | C36: 186,725.39 | D36: 529.06 | E36: 687.70 | F36: 1,216.76 | G36: 186,037.69
A37: 2024-08-01 | B37: 21 | C37: 186,037.69 | D37: 527.11 | E37: 689.65 | F37: 1,216.76 | G37: 185,348.04
A38: 2024-09-01 | B38: 22 | C38: 185,348.04 | D38: 525.15 | E38: 691.61 | F38: 1,216.76 | G38: 184,656.43
A39: 2024-10-01 | B39: 23 | C39: 184,656.43 | D39: 523.19 | E39: 693.57 | F39: 1,216.76 | G39: 183,962.86
A40: 2024-11-01 | B40: 24 | C40: 183,962.86 | D40: 521.23 | E40: 695.53 | F40: 1,216.76 | G40: 183,267.33
A41: 2024-12-01 | B41: 25 | C41: 183,267.33 | D41: 519.26 | E41: 697.50 | F41: 1,216.76 | G41: 182,569.83
A42: 2025-01-01 | B42: 26 | C42: 182,569.83 | D42: 517.28 | E42: 699.48 | F42: 1,216.76 | G42: 181,870.35
A43: 2025-02-01 | B43: 27 | C43: 181,870.35 | D43: 515.30 | E43: 701.46 | F43: 1,216.76 | G43: 181,168.89
A44: 2025-03-01 | B44: 28 | C44: 181,168.89 | D44: 513.31 | E44: 703.45 | F44: 1,216.76 | G44: 180,465.44
A45: 2025-04-01 | B45: 29 | C45: 180,465.44 | D45: 511.32 | E45: 705.44 | F45: 1,216.76 | G45: 179,760.00
A46: 2025-05-01 | B46: 30 | C46: 179,760.00 | D46: 509.32 | E46: 707.44 | F46: 1,216.76 | G46: 179,052.56
A47: 2025-06-01 | B47: 31 | C47: 179,052.56 | D47: 507.32 | E47: 709.44 | F47: 1,216.76 | G47: 178,343.12
A48: 2025-07-01 | B48: 32 | C48: 178,343.12 | D48: 505.31 | E48: 711.45 | F48: 1,216.76 | G48: 177,631.67
A49: 2025-08-01 | B49: 33 | C49: 177,631.67 | D49: 503.29 | E49: 713.47 | F49: 1,216.76 | G49: 176,918.20
A50: 2025-09-01 | B50: 34 | C50: 176,918.20 | D50: 501.27 | E50: 715.49 | F50: 1,216.76 | G50: 176,202.71
A51: 2025-10-01 | B51: 35 | C51: 176,202.71 | D51: 499.24 | E51: 717.52 | F51: 1,216.76 | G51: 175,485.19
A52: 2025-11-01 | B52: 36 | C52: 175,485.19 | D52: 497.21 | E52: 719.55 | F52: 1,216.76 | G52: 174,765.64
A53: 2025-12-01 | B53: 37 | C53: 174,765.64 | D53: 495.17 | E53: 721.59 | F53: 1,216.76 | G53: 174,044.05
A54: 2026-01-01 | B54: 38 | C54: 174,044.05 | D54: 493.12 | E54: 723.64 | F54: 1,216.76 | G54: 173,320.41
A55: 2026-02-01 | B55: 39 | C55: 173,320.41 | D55: 491.07 | E55: 725.69 | F55: 1,216.76 | G55: 172,594.72
A56: 2026-03-01 | B56: 40 | C56: 172,594.72 | D56: 489.02 | E56: 727.74 | F56: 1,216.76 | G56: 171,866.98
A57: 2026-04-01 | B57: 41 | C57: 171,866.98 | D57: 486.96 | E57: 729.80 | F57: 1,216.76 | G57: 171,137.18
A58: 2026-05-01 | B58: 42 | C58: 171,137.18 | D58: 484.89 | E58: 731.87 | F58: 1,216.76 | G58: 170,405.31
A59: 2026-06-01 | B59: 43 | C59: 170,405.31 | D59: 482.82 | E59: 733.94 | F59: 1,216.76 | G59: 169,671.37
A60: 2026-07-01 | B60: 44 | C60: 169,671.37 | D60: 480.74 | E60: 736.02 | F60: 1,216.76 | G60: 168,935.35
A61: 2026-08-01 | B61: 45 | C61: 168,935.35 | D61: 478.65 | E61: 738.11 | F61: 1,216.76 | G61: 168,197.24
A62: 2026-09-01 | B62: 46 | C62: 168,197.24 | D62: 476.56 | E62: 740.20 | F62: 1,216.76 | G62: 167,457.04
A63: 2026-10-01 | B63: 47 | C63: 167,457.04 | D63: 474.46 | E63: 742.30 | F63: 1,216.76 | G63: 166,714.74
A64: 2026-11-01 | B64: 48 | C64: 166,714.74 | D64: 472.36 | E64: 744.40 | F64: 1,216.76 | G64: 165,970.34
A65: 2026-12-01 | B65: 49 | C65: 165,970.34 | D65: 470.25 | E65: 746.51 | F65: 1,216.76 | G65: 165,223.83
A66: 2027-01-01 | B66: 50 | C66: 165,223.83 | D66: 468.13 | E66: 748.63 | F66: 1,216.76 | G66: 164,475.20
A67: 2027-02-01 | B67: 51 | C67: 164,475.20 | D67: 466.01 | E67: 750.75 | F67: 1,216.76 | G67: 163,724.45
A68: 2027-03-01 | B68: 52 | C68: 163,724.45 | D68: 463.89 | E68: 752.87 | F68: 1,216.76 | G68: 162,971.58
A69: 2027-04-01 | B69: 53 | C69: 162,971.58 | D69: 461.75 | E69: 755.01 | F69: 1,216.76 | G69: 162,216.57
A70: 2027-05-01 | B70: 54 | C70: 162,216.57 | D70: 459.61 | E70: 757.15 | F70: 1,216.76 | G70: 161,459.42
A71: 2027-06-01 | B71: 55 | C71: 161,459.42 | D71: 457.47 | E71: 759.29 | F71: 1,216.76 | G71: 160,700.13
A72: 2027-07-01 | B72: 56 | C72: 160,700.13 | D72: 455.32 | E72: 761.44 | F72: 1,216.76 | G72: 159,938.69
A73: 2027-08-01 | B73: 57 | C73: 159,938.69 | D73: 453.16 | E73: 763.60 | F73: 1,216.76 | G73: 159,175.09
A74: 2027-09-01 | B74: 58 | C74: 159,175.09 | D74: 451.00 | E74: 765.76 | F74: 1,216.76 | G74: 158,409.33
A75: 2027-10-01 | B75: 59 | C75: 158,409.33 | D75: 448.83 | E75: 767.93 | F75: 1,216.76 | G75: 157,641.40
A76: 2027-11-01 | B76: 60 | C76: =G75 -> 157,641.40 | D76: =ROUND(C76*$E$13/12,2) -> 446.65 | E76: =F76-D76 -> 770.11 | F76: 1,216.76 | G76: =C76-E76 -> 156,871.29
A77: 2027-12-01 | B77: 61 | C77: =G76 -> 156,871.29 | D77: =ROUND(C77*$E$13/12,2) -> 444.47 | E77: =F77-D77 -> 772.29 | F77: 1,216.76 | G77: =C77-E77 -> 156,099.00
A78: 2028-01-01 | B78: 62 | C78: 156,099.00 | D78: 442.28 | E78: 774.48 | F78: 1,216.76 | G78: 155,324.52
A79: 2028-02-01 | B79: 63 | C79: 155,324.52 | D79: 440.09 | E79: 776.67 | F79: 1,216.76 | G79: 154,547.85
A80: 2028-03-01 | B80: 64 | C80: 154,547.85 | D80: 437.89 | E80: 778.87 | F80: 1,216.76 | G80: 153,768.98
A81: 2028-04-01 | B81: 65 | C81: 153,768.98 | D81: 435.68 | E81: 781.08 | F81: 1,216.76 | G81: 152,987.90
A82: 2028-05-01 | B82: 66 | C82: 152,987.90 | D82: 433.47 | E82: 783.29 | F82: 1,216.76 | G82: 152,204.61
A83: 2028-06-01 | B83: 67 | C83: 152,204.61 | D83: 431.25 | E83: 785.51 | F83: =F82 -> 1,216.76 | G83: 151,419.10
A84: =EDATE(A83,1) -> 2028-07-01 | B84: 68 | C84: 151,419.10 | D84: 429.02 | E84: 787.74 | F84: 1,216.76 | G84: 150,631.36
A85: 2028-08-01 | B85: 69 | C85: 150,631.36 | D85: 426.79 | E85: 789.97 | F85: 1,216.76 | G85: 149,841.39
A86: 2028-09-01 | B86: 70 | C86: 149,841.39 | D86: 424.55 | E86: 792.21 | F86: 1,216.76 | G86: 149,049.18
A87: 2028-10-01 | B87: 71 | C87: 149,049.18 | D87: 422.31 | E87: 794.45 | F87: 1,216.76 | G87: 148,254.73
A88: 2028-11-01 | B88: 72 | C88: 148,254.73 | D88: 420.06 | E88: 796.70 | F88: 1,216.76 | G88: 147,458.03
A89: 2028-12-01 | B89: 73 | C89: 147,458.03 | D89: 417.80 | E89: 798.96 | F89: 1,216.76 | G89: 146,659.07
A90: 2029-01-01 | B90: 74 | C90: 146,659.07 | D90: 415.53 | E90: 801.23 | F90: 1,216.76 | G90: 145,857.84
A91: 2029-02-01 | B91: 75 | C91: 145,857.84 | D91: 413.26 | E91: 803.50 | F91: 1,216.76 | G91: 145,054.34
A92: 2029-03-01 | B92: 76 | C92: 145,054.34 | D92: 410.99 | E92: 805.77 | F92: 1,216.76 | G92: 144,248.57
A93: 2029-04-01 | B93: 77 | C93: 144,248.57 | D93: 408.70 | E93: 808.06 | F93: 1,216.76 | G93: 143,440.51
A94: 2029-05-01 | B94: 78 | C94: 143,440.51 | D94: 406.41 | E94: 810.35 | F94: 1,216.76 | G94: 142,630.16
A95: 2029-06-01 | B95: 79 | C95: 142,630.16 | D95: 404.12 | E95: 812.64 | F95: 1,216.76 | G95: 141,817.52
A96: 2029-07-01 | B96: 80 | C96: 141,817.52 | D96: 401.82 | E96: 814.94 | F96: 1,216.76 | G96: 141,002.58
A97: 2029-08-01 | B97: 81 | C97: 141,002.58 | D97: 399.51 | E97: 817.25 | F97: 1,216.76 | G97: 140,185.33
A98: 2029-09-01 | B98: 82 | C98: 140,185.33 | D98: 397.19 | E98: 819.57 | F98: 1,216.76 | G98: 139,365.76
A99: 2029-10-01 | B99: 83 | C99: 139,365.76 | D99: 394.87 | E99: 821.89 | F99: 1,216.76 | G99: 138,543.87
A100: 2029-11-01 | B100: 84 | C100: 138,543.87 | D100: 392.54 | E100: 824.22 | F100: 1,216.76 | G100: 137,719.65
A101: 2029-12-01 | B101: 85 | C101: 137,719.65 | D101: 390.21 | E101: 826.55 | F101: 1,216.76 | G101: 136,893.10
A102: 2030-01-01 | B102: 86 | C102: 136,893.10 | D102: 387.86 | E102: 828.90 | F102: 1,216.76 | G102: 136,064.20
A103: 2030-02-01 | B103: 87 | C103: 136,064.20 | D103: 385.52 | E103: 831.24 | F103: 1,216.76 | G103: 135,232.96
A104: 2030-03-01 | B104: 88 | C104: 135,232.96 | D104: 383.16 | E104: 833.60 | F104: 1,216.76 | G104: 134,399.36
A105: 2030-04-01 | B105: 89 | C105: 134,399.36 | D105: 380.80 | E105: 835.96 | F105: 1,216.76 | G105: 133,563.40
A106: 2030-05-01 | B106: 90 | C106: 133,563.40 | D106: 378.43 | E106: 838.33 | F106: 1,216.76 | G106: 132,725.07
A107: 2030-06-01 | B107: 91 | C107: 132,725.07 | D107: 376.05 | E107: 840.71 | F107: 1,216.76 | G107: 131,884.36
A108: 2030-07-01 | B108: 92 | C108: 131,884.36 | D108: 373.67 | E108: 843.09 | F108: 1,216.76 | G108: 131,041.27
A109: 2030-08-01 | B109: 93 | C109: 131,041.27 | D109: 371.28 | E109: 845.48 | F109: 1,216.76 | G109: 130,195.79
A110: 2030-09-01 | B110: 94 | C110: 130,195.79 | D110: 368.89 | E110: 847.87 | F110: 1,216.76 | G110: 129,347.92
A111: 2030-10-01 | B111: 95 | C111: 129,347.92 | D111: 366.49 | E111: 850.27 | F111: 1,216.76 | G111: 128,497.65
A112: 2030-11-01 | B112: 96 | C112: 128,497.65 | D112: 364.08 | E112: 852.68 | F112: 1,216.76 | G112: 127,644.97
A113: 2030-12-01 | B113: 97 | C113: 127,644.97 | D113: 361.66 | E113: 855.10 | F113: 1,216.76 | G113: 126,789.87
A114: 2031-01-01 | B114: 98 | C114: 126,789.87 | D114: 359.24 | E114: 857.52 | F114: 1,216.76 | G114: 125,932.35
A115: 2031-02-01 | B115: 99 | C115: 125,932.35 | D115: 356.81 | E115: 859.95 | F115: 1,216.76 | G115: 125,072.40
A116: 2031-03-01 | B116: 100 | C116: 125,072.40 | D116: 354.37 | E116: 862.39 | F116: 1,216.76 | G116: 124,210.01
A117: 2031-04-01 | B117: 101 | C117: 124,210.01 | D117: 351.93 | E117: 864.83 | F117: 1,216.76 | G117: 123,345.18
A118: 2031-05-01 | B118: 102 | C118: 123,345.18 | D118: 349.48 | E118: 867.28 | F118: 1,216.76 | G118: 122,477.90
A119: 2031-06-01 | B119: 103 | C119: 122,477.90 | D119: 347.02 | E119: 869.74 | F119: 1,216.76 | G119: 121,608.16
A120: 2031-07-01 | B120: 104 | C120: 121,608.16 | D120: 344.56 | E120: 872.20 | F120: 1,216.76 | G120: 120,735.96
A121: 2031-08-01 | B121: 105 | C121: 120,735.96 | D121: 342.09 | E121: 874.67 | F121: 1,216.76 | G121: 119,861.29
A122: 2031-09-01 | B122: 106 | C122: 119,861.29 | D122: 339.61 | E122: 877.15 | F122: 1,216.76 | G122: 118,984.14
A123: 2031-10-01 | B123: 107 | C123: 118,984.14 | D123: 337.12 | E123: 879.64 | F123: 1,216.76 | G123: 118,104.50
A124: 2031-11-01 | B124: 108 | C124: 118,104.50 | D124: 334.63 | E124: 882.13 | F124: 1,216.76 | G124: 117,222.37
A125: 2031-12-01 | B125: 109 | C125: 117,222.37 | D125: 332.13 | E125: 884.63 | F125: 1,216.76 | G125: 116,337.74
A126: 2032-01-01 | B126: 110 | C126: 116,337.74 | D126: 329.62 | E126: 887.14 | F126: 1,216.76 | G126: 115,450.60
A127: 2032-02-01 | B127: 111 | C127: 115,450.60 | D127: 327.11 | E127: 889.65 | F127: 1,216.76 | G127: 114,560.95
A128: 2032-03-01 | B128: 112 | C128: 114,560.95 | D128: 324.59 | E128: 892.17 | F128: 1,216.76 | G128: 113,668.78
A129: 2032-04-01 | B129: 113 | C129: 113,668.78 | D129: 322.06 | E129: 894.70 | F129: 1,216.76 | G129: 112,774.08
A130: 2032-05-01 | B130: 114 | C130: 112,774.08 | D130: 319.53 | E130: 897.23 | F130: 1,216.76 | G130: 111,876.85
A131: 2032-06-01 | B131: 115 | C131: 111,876.85 | D131: 316.98 | E131: 899.78 | F131: 1,216.76 | G131: 110,977.07
A132: 2032-07-01 | B132: 116 | C132: 110,977.07 | D132: 314.44 | E132: 902.32 | F132: 1,216.76 | G132: 110,074.75
A133: 2032-08-01 | B133: 117 | C133: 110,074.75 | D133: 311.88 | E133: 904.88 | F133: 1,216.76 | G133: 109,169.87
A134: 2032-09-01 | B134: 118 | C134: 109,169.87 | D134: 309.31 | E134: 907.45 | F134: 1,216.76 | G134: 108,262.42
A135: 2032-10-01 | B135: 119 | C135: 108,262.42 | D135: 306.74 | E135: 910.02 | F135: 1,216.76 | G135: 107,352.40
A136: 2032-11-01 | B136: 120 | C136: 107,352.40 | D136: 304.17 | E136: =C136-E12 -> 913.25 | F136: =D136+E136 -> 1,217.42 | G136: 106,439.15

Sheet Annuiteedigraafik PT
B4: Kapitalikomponendi annuiteetmaksegraafik - | F4: Akadeemia tn 2, Pärnu | M4: Üürnikuspetsiifilise investeeringu annuiteetmaksegraafik
B6: Maksete algus | E6: 2022-12-01 | M6: Maksete algus | P6: =E6 -> 2022-12-01
B7: Maksete arv | E7: 120 | F7: kuud | M7: Maksete arv | P7: =E7 -> 120 | Q7: kuud
B8: Kapitali algväärtus | D8: =E6-1 -> 2022-11-30 | E8: 1,216,758.56 | F8: EUR (km-ta) | M8: Üürniku spetsiifiline algväärtus | O8: =P6-1 -> 2022-11-30 | P8: 178,895 | Q8: EUR (km-ta)
B9: Kapitali lõppväärtus | D9: =EDATE(D8,E7) -> 2032-11-30 | E9: 156,458.48 | F9: EUR (km-ta) | M9: Üürniku spetsiifiline lõppväärtus | O9: =EDATE(O8,P7) -> 2032-11-30 | P9: 0 | Q9: EUR (km-ta)
B10: Kapitali tulumäär 2022 I pa | E10: 3.4% | M10: Kapitali tulumäär 2022 I pa | P10: 3.4%
A13: Kuupäev | B13: Jrk nr | C13: Algjääk | D13: Intress | E13: Põhiosa | F13: Kap.komponent | G13: Lõppjääk | L13: Kuupäev | M13: Jrk nr | N13: Algjääk | O13: Intress | P13: Põhiosa | Q13: Kap.komponent | R13: Lõppjääk
A14: =E6 -> 2022-12-01 | B14: 1 | C14: =E8 -> 1,216,758.56 | D14: =ROUND(C14*$E$10/12,2) -> 3,447.48 | E14: =PPMT($E$10/12,B14,$E$7,-$E$8,$E$9,0) -> 7,431.09 | F14: =ROUND(PMT($E$10/12,E7,-E8,E9),2) -> 10,878.57 | G14: =C14-E14 -> 1,209,327.47 | L14: =P6 -> 2022-12-01 | M14: 1 | N14: =P8 -> 178,894.68 | O14: =ROUND(N14*$P$10/12,2) -> 506.87 | P14: =PPMT($P$10/12,M14,$P$7,-$P$8,$P$9,0) -> 1,253.78 | Q14: =ROUND(PMT($P$10/12,P7,-P8,P9),2) -> 1,760.65 | R14: =N14-P14 -> 177,640.90
A15: =EDATE(A14,1) -> 2023-01-01 | B15: 2 | C15: =G14 -> 1,209,327.47 | D15: =ROUND(C15*$E$10/12,2) -> 3,426.43 | E15: 7,452.14 | F15: =F14 -> 10,878.57 | G15: =C15-E15 -> 1,201,875.32 | L15: =EDATE(L14,1) -> 2023-01-01 | M15: 2 | N15: =R14 -> 177,640.90 | O15: =ROUND(N15*$P$10/12,2) -> 503.32 | P15: =PPMT($P$10/12,M15,$P$7,-$P$8,$P$9,0) -> 1,257.33 | Q15: =Q14 -> 1,760.65 | R15: =N15-P15 -> 176,383.57
A16: =EDATE(A15,1) -> 2023-02-01 | B16: 3 | C16: =G15 -> 1,201,875.32 | D16: 3,405.31 | E16: 7,473.26 | F16: =F15 -> 10,878.57 | G16: 1,194,402.07 | L16: =EDATE(L15,1) -> 2023-02-01 | M16: 3 | N16: =R15 -> 176,383.57 | O16: 499.75 | P16: 1,260.89 | Q16: =Q15 -> 1,760.65 | R16: 175,122.67
A17: =EDATE(A16,1) -> 2023-03-01 | B17: 4 | C17: =G16 -> 1,194,402.07 | D17: 3,384.14 | E17: 7,494.43 | F17: 10,878.57 | G17: 1,186,907.63 | L17: =EDATE(L16,1) -> 2023-03-01 | M17: 4 | N17: =R16 -> 175,122.67 | O17: 496.18 | P17: 1,264.47 | Q17: 1,760.65 | R17: 173,858.21
A18: 2023-04-01 | B18: 5 | C18: 1,186,907.63 | D18: 3,362.90 | E18: 7,515.67 | F18: 10,878.57 | G18: 1,179,391.97 | L18: 2023-04-01 | M18: 5 | N18: 173,858.21 | O18: 492.60 | P18: 1,268.05 | Q18: 1,760.65 | R18: 172,590.16
A19: 2023-05-01 | B19: 6 | C19: 1,179,391.97 | D19: 3,341.61 | E19: 7,536.96 | F19: 10,878.57 | G19: 1,171,855.01 | L19: 2023-05-01 | M19: 6 | N19: 172,590.16 | O19: 489.01 | P19: 1,271.64 | Q19: 1,760.65 | R19: 171,318.52
A20: 2023-06-01 | B20: 7 | C20: 1,171,855.01 | D20: 3,320.26 | E20: 7,558.32 | F20: 10,878.57 | G20: 1,164,296.69 | L20: 2023-06-01 | M20: 7 | N20: 171,318.52 | O20: 485.40 | P20: 1,275.25 | Q20: 1,760.65 | R20: 170,043.27
A21: =EDATE(A20,1) -> 2023-07-01 | B21: 8 | C21: 1,164,296.69 | D21: 3,298.84 | E21: 7,579.73 | F21: 10,878.57 | G21: 1,156,716.96 | L21: =EDATE(L20,1) -> 2023-07-01 | M21: 8 | N21: 170,043.27 | O21: 481.79 | P21: 1,278.86 | Q21: 1,760.65 | R21: 168,764.41
A22: 2023-08-01 | B22: 9 | C22: 1,156,716.96 | D22: 3,277.36 | E22: 7,601.21 | F22: 10,878.57 | G22: 1,149,115.75 | L22: 2023-08-01 | M22: 9 | N22: 168,764.41 | O22: 478.17 | P22: 1,282.48 | Q22: 1,760.65 | R22: 167,481.93
A23: 2023-09-01 | B23: 10 | C23: 1,149,115.75 | D23: 3,255.83 | E23: 7,622.74 | F23: 10,878.57 | G23: 1,141,493.01 | L23: 2023-09-01 | M23: 10 | N23: 167,481.93 | O23: 474.53 | P23: 1,286.12 | Q23: 1,760.65 | R23: 166,195.81
A24: 2023-10-01 | B24: 11 | C24: 1,141,493.01 | D24: 3,234.23 | E24: 7,644.34 | F24: 10,878.57 | G24: 1,133,848.67 | L24: 2023-10-01 | M24: 11 | N24: 166,195.81 | O24: 470.89 | P24: 1,289.76 | Q24: 1,760.65 | R24: 164,906.06
A25: 2023-11-01 | B25: 12 | C25: 1,133,848.67 | D25: 3,212.57 | E25: 7,666.00 | F25: 10,878.57 | G25: 1,126,182.67 | L25: 2023-11-01 | M25: 12 | N25: 164,906.06 | O25: 467.23 | P25: 1,293.41 | Q25: 1,760.65 | R25: 163,612.64
A26: 2023-12-01 | B26: 13 | C26: 1,126,182.67 | D26: 3,190.85 | E26: 7,687.72 | F26: 10,878.57 | G26: 1,118,494.95 | L26: 2023-12-01 | M26: 13 | N26: 163,612.64 | O26: 463.57 | P26: 1,297.08 | Q26: 1,760.65 | R26: 162,315.56
A27: 2024-01-01 | B27: 14 | C27: 1,118,494.95 | D27: 3,169.07 | E27: 7,709.50 | F27: 10,878.57 | G27: 1,110,785.44 | L27: 2024-01-01 | M27: 14 | N27: 162,315.56 | O27: 459.89 | P27: 1,300.75 | Q27: 1,760.65 | R27: 161,014.81
A28: 2024-02-01 | B28: 15 | C28: 1,110,785.44 | D28: 3,147.23 | E28: 7,731.35 | F28: 10,878.57 | G28: 1,103,054.10 | L28: 2024-02-01 | M28: 15 | N28: 161,014.81 | O28: 456.21 | P28: 1,304.44 | Q28: 1,760.65 | R28: 159,710.37
A29: 2024-03-01 | B29: 16 | C29: 1,103,054.10 | D29: 3,125.32 | E29: 7,753.25 | F29: 10,878.57 | G29: 1,095,300.84 | L29: 2024-03-01 | M29: 16 | N29: 159,710.37 | O29: 452.51 | P29: 1,308.13 | Q29: 1,760.65 | R29: 158,402.24
A30: 2024-04-01 | B30: 17 | C30: 1,095,300.84 | D30: 3,103.35 | E30: 7,775.22 | F30: 10,878.57 | G30: 1,087,525.63 | L30: 2024-04-01 | M30: 17 | N30: 158,402.24 | O30: 448.81 | P30: 1,311.84 | Q30: 1,760.65 | R30: 157,090.39
A31: 2024-05-01 | B31: 18 | C31: 1,087,525.63 | D31: 3,081.32 | E31: 7,797.25 | F31: 10,878.57 | G31: 1,079,728.38 | L31: 2024-05-01 | M31: 18 | N31: 157,090.39 | O31: 445.09 | P31: 1,315.56 | Q31: 1,760.65 | R31: 155,774.84
A32: 2024-06-01 | B32: 19 | C32: 1,079,728.38 | D32: 3,059.23 | E32: 7,819.34 | F32: 10,878.57 | G32: 1,071,909.04 | L32: 2024-06-01 | M32: 19 | N32: 155,774.84 | O32: 441.36 | P32: 1,319.29 | Q32: 1,760.65 | R32: 154,455.55
A33: 2024-07-01 | B33: 20 | C33: 1,071,909.04 | D33: 3,037.08 | E33: 7,841.50 | F33: 10,878.57 | G33: 1,064,067.54 | L33: 2024-07-01 | M33: 20 | N33: 154,455.55 | O33: 437.62 | P33: 1,323.02 | Q33: 1,760.65 | R33: 153,132.53
A34: 2024-08-01 | B34: 21 | C34: 1,064,067.54 | D34: 3,014.86 | E34: 7,863.71 | F34: 10,878.57 | G34: 1,056,203.83 | L34: 2024-08-01 | M34: 21 | N34: 153,132.53 | O34: 433.88 | P34: 1,326.77 | Q34: 1,760.65 | R34: 151,805.76
A35: 2024-09-01 | B35: 22 | C35: 1,056,203.83 | D35: 2,992.58 | E35: 7,885.99 | F35: 10,878.57 | G35: 1,048,317.83 | L35: 2024-09-01 | M35: 22 | N35: 151,805.76 | O35: 430.12 | P35: 1,330.53 | Q35: 1,760.65 | R35: 150,475.22
A36: 2024-10-01 | B36: 23 | C36: 1,048,317.83 | D36: 2,970.23 | E36: 7,908.34 | F36: 10,878.57 | G36: 1,040,409.49 | L36: 2024-10-01 | M36: 23 | N36: 150,475.22 | O36: 426.35 | P36: 1,334.30 | Q36: 1,760.65 | R36: 149,140.92
A37: 2024-11-01 | B37: 24 | C37: 1,040,409.49 | D37: 2,947.83 | E37: 7,930.74 | F37: 10,878.57 | G37: 1,032,478.75 | L37: 2024-11-01 | M37: 24 | N37: 149,140.92 | O37: 422.57 | P37: 1,338.08 | Q37: 1,760.65 | R37: 147,802.84
A38: 2024-12-01 | B38: 25 | C38: 1,032,478.75 | D38: 2,925.36 | E38: 7,953.22 | F38: 10,878.57 | G38: 1,024,525.53 | L38: 2024-12-01 | M38: 25 | N38: 147,802.84 | O38: 418.77 | P38: 1,341.87 | Q38: 1,760.65 | R38: 146,460.97
A39: 2025-01-01 | B39: 26 | C39: 1,024,525.53 | D39: 2,902.82 | E39: 7,975.75 | F39: 10,878.57 | G39: 1,016,549.78 | L39: 2025-01-01 | M39: 26 | N39: 146,460.97 | O39: 414.97 | P39: 1,345.67 | Q39: 1,760.65 | R39: 145,115.29
A40: 2025-02-01 | B40: 27 | C40: 1,016,549.78 | D40: 2,880.22 | E40: 7,998.35 | F40: 10,878.57 | G40: 1,008,551.44 | L40: 2025-02-01 | M40: 27 | N40: 145,115.29 | O40: 411.16 | P40: 1,349.49 | Q40: 1,760.65 | R40: 143,765.81
A41: 2025-03-01 | B41: 28 | C41: 1,008,551.44 | D41: 2,857.56 | E41: 8,021.01 | F41: 10,878.57 | G41: 1,000,530.43 | L41: 2025-03-01 | M41: 28 | N41: 143,765.81 | O41: 407.34 | P41: 1,353.31 | Q41: 1,760.65 | R41: 142,412.50
A42: 2025-04-01 | B42: 29 | C42: 1,000,530.43 | D42: 2,834.84 | E42: 8,043.74 | F42: 10,878.57 | G42: 992,486.69 | L42: 2025-04-01 | M42: 29 | N42: 142,412.50 | O42: 403.50 | P42: 1,357.15 | Q42: 1,760.65 | R42: 141,055.35
A43: 2025-05-01 | B43: 30 | C43: 992,486.69 | D43: 2,812.05 | E43: 8,066.53 | F43: 10,878.57 | G43: 984,420.17 | L43: 2025-05-01 | M43: 30 | N43: 141,055.35 | O43: 399.66 | P43: 1,360.99 | Q43: 1,760.65 | R43: 139,694.36
A44: 2025-06-01 | B44: 31 | C44: 984,420.17 | D44: 2,789.19 | E44: 8,089.38 | F44: 10,878.57 | G44: 976,330.79 | L44: 2025-06-01 | M44: 31 | N44: 139,694.36 | O44: 395.80 | P44: 1,364.85 | Q44: 1,760.65 | R44: 138,329.51
A45: 2025-07-01 | B45: 32 | C45: 976,330.79 | D45: 2,766.27 | E45: 8,112.30 | F45: 10,878.57 | G45: 968,218.48 | L45: 2025-07-01 | M45: 32 | N45: 138,329.51 | O45: 391.93 | P45: 1,368.71 | Q45: 1,760.65 | R45: 136,960.80
A46: 2025-08-01 | B46: 33 | C46: 968,218.48 | D46: 2,743.29 | E46: 8,135.29 | F46: 10,878.57 | G46: 960,083.20 | L46: 2025-08-01 | M46: 33 | N46: 136,960.80 | O46: 388.06 | P46: 1,372.59 | Q46: 1,760.65 | R46: 135,588.21
A47: 2025-09-01 | B47: 34 | C47: 960,083.20 | D47: 2,720.24 | E47: 8,158.34 | F47: 10,878.57 | G47: 951,924.86 | L47: 2025-09-01 | M47: 34 | N47: 135,588.21 | O47: 384.17 | P47: 1,376.48 | Q47: 1,760.65 | R47: 134,211.73
A48: 2025-10-01 | B48: 35 | C48: 951,924.86 | D48: 2,697.12 | E48: 8,181.45 | F48: 10,878.57 | G48: 943,743.41 | L48: 2025-10-01 | M48: 35 | N48: 134,211.73 | O48: 380.27 | P48: 1,380.38 | Q48: 1,760.65 | R48: 132,831.34
A49: 2025-11-01 | B49: 36 | C49: 943,743.41 | D49: 2,673.94 | E49: 8,204.63 | F49: 10,878.57 | G49: 935,538.78 | L49: 2025-11-01 | M49: 36 | N49: 132,831.34 | O49: 376.36 | P49: 1,384.29 | Q49: 1,760.65 | R49: 131,447.05
A50: 2025-12-01 | B50: 37 | C50: 935,538.78 | D50: 2,650.69 | E50: 8,227.88 | F50: 10,878.57 | G50: 927,310.90 | L50: 2025-12-01 | M50: 37 | N50: 131,447.05 | O50: 372.43 | P50: 1,388.21 | Q50: 1,760.65 | R50: 130,058.84
A51: 2026-01-01 | B51: 38 | C51: 927,310.90 | D51: 2,627.38 | E51: 8,251.19 | F51: 10,878.57 | G51: 919,059.71 | L51: 2026-01-01 | M51: 38 | N51: 130,058.84 | O51: 368.50 | P51: 1,392.15 | Q51: 1,760.65 | R51: 128,666.69
A52: 2026-02-01 | B52: 39 | C52: 919,059.71 | D52: 2,604.00 | E52: 8,274.57 | F52: 10,878.57 | G52: 910,785.14 | L52: 2026-02-01 | M52: 39 | N52: 128,666.69 | O52: 364.56 | P52: 1,396.09 | Q52: 1,760.65 | R52: 127,270.60
A53: 2026-03-01 | B53: 40 | C53: 910,785.14 | D53: 2,580.56 | E53: 8,298.01 | F53: 10,878.57 | G53: 902,487.13 | L53: 2026-03-01 | M53: 40 | N53: 127,270.60 | O53: 360.60 | P53: 1,400.05 | Q53: 1,760.65 | R53: 125,870.55
A54: 2026-04-01 | B54: 41 | C54: 902,487.13 | D54: 2,557.05 | E54: 8,321.52 | F54: 10,878.57 | G54: 894,165.60 | L54: 2026-04-01 | M54: 41 | N54: 125,870.55 | O54: 356.63 | P54: 1,404.01 | Q54: 1,760.65 | R54: 124,466.54
A55: 2026-05-01 | B55: 42 | C55: 894,165.60 | D55: 2,533.47 | E55: 8,345.10 | F55: 10,878.57 | G55: 885,820.50 | L55: 2026-05-01 | M55: 42 | N55: 124,466.54 | O55: 352.66 | P55: 1,407.99 | Q55: 1,760.65 | R55: 123,058.54
A56: 2026-06-01 | B56: 43 | C56: 885,820.50 | D56: 2,509.82 | E56: 8,368.75 | F56: 10,878.57 | G56: 877,451.75 | L56: 2026-06-01 | M56: 43 | N56: 123,058.54 | O56: 348.67 | P56: 1,411.98 | Q56: 1,760.65 | R56: 121,646.56
A57: 2026-07-01 | B57: 44 | C57: 877,451.75 | D57: 2,486.11 | E57: 8,392.46 | F57: 10,878.57 | G57: 869,059.29 | L57: 2026-07-01 | M57: 44 | N57: 121,646.56 | O57: 344.67 | P57: 1,415.98 | Q57: 1,760.65 | R57: 120,230.58
A58: 2026-08-01 | B58: 45 | C58: 869,059.29 | D58: 2,462.33 | E58: 8,416.24 | F58: 10,878.57 | G58: 860,643.06 | L58: 2026-08-01 | M58: 45 | N58: 120,230.58 | O58: 340.65 | P58: 1,419.99 | Q58: 1,760.65 | R58: 118,810.59
A59: 2026-09-01 | B59: 46 | C59: 860,643.06 | D59: 2,438.49 | E59: 8,440.08 | F59: 10,878.57 | G59: 852,202.97 | L59: 2026-09-01 | M59: 46 | N59: 118,810.59 | O59: 336.63 | P59: 1,424.02 | Q59: 1,760.65 | R59: 117,386.57
A60: 2026-10-01 | B60: 47 | C60: 852,202.97 | D60: 2,414.58 | E60: 8,464.00 | F60: 10,878.57 | G60: 843,738.98 | L60: 2026-10-01 | M60: 47 | N60: 117,386.57 | O60: 332.60 | P60: 1,428.05 | Q60: 1,760.65 | R60: 115,958.52
A61: 2026-11-01 | B61: 48 | C61: 843,738.98 | D61: 2,390.59 | E61: 8,487.98 | F61: 10,878.57 | G61: 835,251.00 | L61: 2026-11-01 | M61: 48 | N61: 115,958.52 | O61: 328.55 | P61: 1,432.10 | Q61: 1,760.65 | R61: 114,526.42
A62: 2026-12-01 | B62: 49 | C62: 835,251.00 | D62: 2,366.54 | E62: 8,512.03 | F62: 10,878.57 | G62: 826,738.97 | L62: 2026-12-01 | M62: 49 | N62: 114,526.42 | O62: 324.49 | P62: 1,436.16 | Q62: 1,760.65 | R62: 113,090.26
A63: 2027-01-01 | B63: 50 | C63: 826,738.97 | D63: 2,342.43 | E63: 8,536.14 | F63: 10,878.57 | G63: 818,202.83 | L63: 2027-01-01 | M63: 50 | N63: 113,090.26 | O63: 320.42 | P63: 1,440.23 | Q63: 1,760.65 | R63: 111,650.04
A64: 2027-02-01 | B64: 51 | C64: 818,202.83 | D64: 2,318.24 | E64: 8,560.33 | F64: 10,878.57 | G64: 809,642.50 | L64: 2027-02-01 | M64: 51 | N64: 111,650.04 | O64: 316.34 | P64: 1,444.31 | Q64: 1,760.65 | R64: 110,205.73
A65: 2027-03-01 | B65: 52 | C65: 809,642.50 | D65: 2,293.99 | E65: 8,584.58 | F65: 10,878.57 | G65: 801,057.91 | L65: 2027-03-01 | M65: 52 | N65: 110,205.73 | O65: 312.25 | P65: 1,448.40 | Q65: 1,760.65 | R65: 108,757.33
A66: 2027-04-01 | B66: 53 | C66: 801,057.91 | D66: 2,269.66 | E66: 8,608.91 | F66: 10,878.57 | G66: 792,449.01 | L66: 2027-04-01 | M66: 53 | N66: 108,757.33 | O66: 308.15 | P66: 1,452.50 | Q66: 1,760.65 | R66: 107,304.83
A67: 2027-05-01 | B67: 54 | C67: 792,449.01 | D67: 2,245.27 | E67: 8,633.30 | F67: 10,878.57 | G67: 783,815.71 | L67: 2027-05-01 | M67: 54 | N67: 107,304.83 | O67: 304.03 | P67: 1,456.62 | Q67: 1,760.65 | R67: 105,848.21
A68: 2027-06-01 | B68: 55 | C68: 783,815.71 | D68: 2,220.81 | E68: 8,657.76 | F68: 10,878.57 | G68: 775,157.95 | L68: 2027-06-01 | M68: 55 | N68: 105,848.21 | O68: 299.90 | P68: 1,460.74 | Q68: 1,760.65 | R68: 104,387.47
A69: 2027-07-01 | B69: 56 | C69: 775,157.95 | D69: 2,196.28 | E69: 8,682.29 | F69: 10,878.57 | G69: 766,475.66 | L69: 2027-07-01 | M69: 56 | N69: 104,387.47 | O69: 295.76 | P69: 1,464.88 | Q69: 1,760.65 | R69: 102,922.59
A70: 2027-08-01 | B70: 57 | C70: 766,475.66 | D70: 2,171.68 | E70: 8,706.89 | F70: 10,878.57 | G70: 757,768.77 | L70: 2027-08-01 | M70: 57 | N70: 102,922.59 | O70: 291.61 | P70: 1,469.03 | Q70: 1,760.65 | R70: 101,453.55
A71: 2027-09-01 | B71: 58 | C71: 757,768.77 | D71: 2,147.01 | E71: 8,731.56 | F71: 10,878.57 | G71: 749,037.21 | L71: 2027-09-01 | M71: 58 | N71: 101,453.55 | O71: 287.45 | P71: 1,473.20 | Q71: 1,760.65 | R71: 99,980.36
A72: 2027-10-01 | B72: 59 | C72: 749,037.21 | D72: 2,122.27 | E72: 8,756.30 | F72: 10,878.57 | G72: 740,280.91 | L72: 2027-10-01 | M72: 59 | N72: 99,980.36 | O72: 283.28 | P72: 1,477.37 | Q72: 1,760.65 | R72: 98,502.99
A73: 2027-11-01 | B73: 60 | C73: =G72 -> 740,280.91 | D73: =ROUND(C73*$E$10/12,2) -> 2,097.46 | E73: 8,781.11 | F73: 10,878.57 | G73: =C73-E73 -> 731,499.80 | L73: 2027-11-01 | M73: 60 | N73: =R72 -> 98,502.99 | O73: 279.09 | P73: 1,481.56 | Q73: 1,760.65 | R73: =N73-P73 -> 97,021.43
A74: 2027-12-01 | B74: 61 | C74: =G73 -> 731,499.80 | D74: =ROUND(C74*$E$10/12,2) -> 2,072.58 | E74: 8,805.99 | F74: 10,878.57 | G74: =C74-E74 -> 722,693.81 | L74: 2027-12-01 | M74: 61 | N74: =R73 -> 97,021.43 | O74: 274.89 | P74: 1,485.75 | Q74: 1,760.65 | R74: =N74-P74 -> 95,535.68
A75: 2028-01-01 | B75: 62 | C75: 722,693.81 | D75: 2,047.63 | E75: 8,830.94 | F75: 10,878.57 | G75: 713,862.87 | L75: 2028-01-01 | M75: 62 | N75: 95,535.68 | O75: 270.68 | P75: 1,489.96 | Q75: 1,760.65 | R75: 94,045.72
A76: 2028-02-01 | B76: 63 | C76: 713,862.87 | D76: 2,022.61 | E76: 8,855.96 | F76: 10,878.57 | G76: 705,006.91 | L76: 2028-02-01 | M76: 63 | N76: 94,045.72 | O76: 266.46 | P76: 1,494.18 | Q76: 1,760.65 | R76: 92,551.53
A77: 2028-03-01 | B77: 64 | C77: 705,006.91 | D77: 1,997.52 | E77: 8,881.05 | F77: 10,878.57 | G77: 696,125.86 | L77: 2028-03-01 | M77: 64 | N77: 92,551.53 | O77: 262.23 | P77: 1,498.42 | Q77: 1,760.65 | R77: 91,053.11
A78: 2028-04-01 | B78: 65 | C78: 696,125.86 | D78: 1,972.36 | E78: =PPMT($E$10/12,B78,$E$7,-$E$8,$E$9,0) -> 8,906.22 | F78: 10,878.57 | G78: 687,219.64 | L78: 2028-04-01 | M78: 65 | N78: 91,053.11 | O78: 257.98 | P78: 1,502.66 | Q78: 1,760.65 | R78: 89,550.45
A79: 2028-05-01 | B79: 66 | C79: 687,219.64 | D79: 1,947.12 | E79: 8,931.45 | F79: 10,878.57 | G79: 678,288.19 | L79: 2028-05-01 | M79: 66 | N79: 89,550.45 | O79: =ROUND(N79*$P$10/12,2) -> 253.73 | P79: =PPMT($P$10/12,M79,$P$7,-$P$8,$P$9,0) -> 1,506.92 | Q79: 1,760.65 | R79: 88,043.53
A80: 2028-06-01 | B80: 67 | C80: 678,288.19 | D80: 1,921.82 | E80: 8,956.76 | F80: =F79 -> 10,878.57 | G80: 669,331.44 | L80: 2028-06-01 | M80: 67 | N80: 88,043.53 | O80: 249.46 | P80: 1,511.19 | Q80: =Q79 -> 1,760.65 | R80: 86,532.34
A81: =EDATE(A80,1) -> 2028-07-01 | B81: 68 | C81: 669,331.44 | D81: 1,896.44 | E81: 8,982.13 | F81: 10,878.57 | G81: 660,349.30 | L81: =EDATE(L80,1) -> 2028-07-01 | M81: 68 | N81: 86,532.34 | O81: 245.17 | P81: 1,515.47 | Q81: 1,760.65 | R81: 85,016.86
A82: 2028-08-01 | B82: 69 | C82: 660,349.30 | D82: 1,870.99 | E82: 9,007.58 | F82: 10,878.57 | G82: 651,341.72 | L82: 2028-08-01 | M82: 69 | N82: 85,016.86 | O82: 240.88 | P82: 1,519.77 | Q82: 1,760.65 | R82: 83,497.10
A83: 2028-09-01 | B83: 70 | C83: 651,341.72 | D83: 1,845.47 | E83: 9,033.10 | F83: 10,878.57 | G83: 642,308.62 | L83: 2028-09-01 | M83: 70 | N83: 83,497.10 | O83: 236.58 | P83: 1,524.07 | Q83: 1,760.65 | R83: 81,973.02
A84: 2028-10-01 | B84: 71 | C84: 642,308.62 | D84: 1,819.87 | E84: 9,058.70 | F84: 10,878.57 | G84: 633,249.92 | L84: 2028-10-01 | M84: 71 | N84: 81,973.02 | O84: 232.26 | P84: 1,528.39 | Q84: 1,760.65 | R84: 80,444.63
A85: 2028-11-01 | B85: 72 | C85: 633,249.92 | D85: 1,794.21 | E85: 9,084.36 | F85: 10,878.57 | G85: 624,165.56 | L85: 2028-11-01 | M85: 72 | N85: 80,444.63 | O85: 227.93 | P85: 1,532.72 | Q85: 1,760.65 | R85: 78,911.91
A86: 2028-12-01 | B86: 73 | C86: 624,165.56 | D86: 1,768.47 | E86: 9,110.10 | F86: 10,878.57 | G86: 615,055.46 | L86: 2028-12-01 | M86: 73 | N86: 78,911.91 | O86: 223.58 | P86: 1,537.06 | Q86: 1,760.65 | R86: 77,374.85
A87: 2029-01-01 | B87: 74 | C87: 615,055.46 | D87: 1,742.66 | E87: 9,135.91 | F87: 10,878.57 | G87: 605,919.54 | L87: 2029-01-01 | M87: 74 | N87: 77,374.85 | O87: 219.23 | P87: 1,541.42 | Q87: 1,760.65 | R87: 75,833.43
A88: 2029-02-01 | B88: 75 | C88: 605,919.54 | D88: 1,716.77 | E88: 9,161.80 | F88: 10,878.57 | G88: 596,757.74 | L88: 2029-02-01 | M88: 75 | N88: 75,833.43 | O88: 214.86 | P88: 1,545.79 | Q88: 1,760.65 | R88: 74,287.64
A89: 2029-03-01 | B89: 76 | C89: 596,757.74 | D89: 1,690.81 | E89: 9,187.76 | F89: 10,878.57 | G89: 587,569.98 | L89: 2029-03-01 | M89: 76 | N89: 74,287.64 | O89: 210.48 | P89: 1,550.17 | Q89: 1,760.65 | R89: 72,737.48
A90: 2029-04-01 | B90: 77 | C90: 587,569.98 | D90: 1,664.78 | E90: 9,213.79 | F90: 10,878.57 | G90: 578,356.19 | L90: 2029-04-01 | M90: 77 | N90: 72,737.48 | O90: 206.09 | P90: 1,554.56 | Q90: 1,760.65 | R90: 71,182.92
A91: 2029-05-01 | B91: 78 | C91: 578,356.19 | D91: 1,638.68 | E91: 9,239.90 | F91: 10,878.57 | G91: 569,116.30 | L91: 2029-05-01 | M91: 78 | N91: 71,182.92 | O91: 201.68 | P91: 1,558.96 | Q91: 1,760.65 | R91: 69,623.96
A92: 2029-06-01 | B92: 79 | C92: 569,116.30 | D92: 1,612.50 | E92: 9,266.08 | F92: 10,878.57 | G92: 559,850.22 | L92: 2029-06-01 | M92: 79 | N92: 69,623.96 | O92: 197.27 | P92: 1,563.38 | Q92: 1,760.65 | R92: 68,060.58
A93: 2029-07-01 | B93: 80 | C93: 559,850.22 | D93: 1,586.24 | E93: 9,292.33 | F93: 10,878.57 | G93: 550,557.89 | L93: 2029-07-01 | M93: 80 | N93: 68,060.58 | O93: 192.84 | P93: 1,567.81 | Q93: 1,760.65 | R93: 66,492.77
A94: 2029-08-01 | B94: 81 | C94: 550,557.89 | D94: 1,559.91 | E94: 9,318.66 | F94: 10,878.57 | G94: 541,239.24 | L94: 2029-08-01 | M94: 81 | N94: 66,492.77 | O94: 188.40 | P94: 1,572.25 | Q94: 1,760.65 | R94: 64,920.52
A95: 2029-09-01 | B95: 82 | C95: 541,239.24 | D95: 1,533.51 | E95: 9,345.06 | F95: 10,878.57 | G95: 531,894.17 | L95: 2029-09-01 | M95: 82 | N95: 64,920.52 | O95: 183.94 | P95: 1,576.71 | Q95: 1,760.65 | R95: 63,343.81
A96: 2029-10-01 | B96: 83 | C96: 531,894.17 | D96: 1,507.03 | E96: 9,371.54 | F96: 10,878.57 | G96: 522,522.64 | L96: 2029-10-01 | M96: 83 | N96: 63,343.81 | O96: 179.47 | P96: 1,581.17 | Q96: 1,760.65 | R96: 61,762.64
A97: 2029-11-01 | B97: 84 | C97: 522,522.64 | D97: 1,480.48 | E97: 9,398.09 | F97: 10,878.57 | G97: 513,124.55 | L97: 2029-11-01 | M97: 84 | N97: 61,762.64 | O97: 174.99 | P97: 1,585.65 | Q97: 1,760.65 | R97: 60,176.98
A98: 2029-12-01 | B98: 85 | C98: 513,124.55 | D98: 1,453.85 | E98: 9,424.72 | F98: 10,878.57 | G98: 503,699.83 | L98: 2029-12-01 | M98: 85 | N98: 60,176.98 | O98: 170.50 | P98: 1,590.15 | Q98: 1,760.65 | R98: 58,586.84
A99: 2030-01-01 | B99: 86 | C99: 503,699.83 | D99: 1,427.15 | E99: 9,451.42 | F99: 10,878.57 | G99: 494,248.40 | L99: 2030-01-01 | M99: 86 | N99: 58,586.84 | O99: 166.00 | P99: 1,594.65 | Q99: 1,760.65 | R99: 56,992.19
A100: 2030-02-01 | B100: 87 | C100: 494,248.40 | D100: 1,400.37 | E100: 9,478.20 | F100: 10,878.57 | G100: 484,770.20 | L100: 2030-02-01 | M100: 87 | N100: 56,992.19 | O100: 161.48 | P100: 1,599.17 | Q100: 1,760.65 | R100: 55,393.02
A101: 2030-03-01 | B101: 88 | C101: 484,770.20 | D101: 1,373.52 | E101: 9,505.06 | F101: 10,878.57 | G101: 475,265.15 | L101: 2030-03-01 | M101: 88 | N101: 55,393.02 | O101: 156.95 | P101: 1,603.70 | Q101: 1,760.65 | R101: 53,789.32
A102: 2030-04-01 | B102: 89 | C102: 475,265.15 | D102: 1,346.58 | E102: 9,531.99 | F102: 10,878.57 | G102: 465,733.16 | L102: 2030-04-01 | M102: 89 | N102: 53,789.32 | O102: 152.40 | P102: 1,608.24 | Q102: 1,760.65 | R102: 52,181.07
A103: 2030-05-01 | B103: 90 | C103: 465,733.16 | D103: 1,319.58 | E103: 9,558.99 | F103: 10,878.57 | G103: 456,174.17 | L103: 2030-05-01 | M103: 90 | N103: 52,181.07 | O103: 147.85 | P103: 1,612.80 | Q103: 1,760.65 | R103: 50,568.27
A104: 2030-06-01 | B104: 91 | C104: 456,174.17 | D104: 1,292.49 | E104: 9,586.08 | F104: 10,878.57 | G104: 446,588.09 | L104: 2030-06-01 | M104: 91 | N104: 50,568.27 | O104: 143.28 | P104: 1,617.37 | Q104: 1,760.65 | R104: 48,950.90
A105: 2030-07-01 | B105: 92 | C105: 446,588.09 | D105: 1,265.33 | E105: 9,613.24 | F105: 10,878.57 | G105: 436,974.85 | L105: 2030-07-01 | M105: 92 | N105: 48,950.90 | O105: 138.69 | P105: 1,621.95 | Q105: 1,760.65 | R105: 47,328.95
A106: 2030-08-01 | B106: 93 | C106: 436,974.85 | D106: 1,238.10 | E106: 9,640.48 | F106: 10,878.57 | G106: 427,334.37 | L106: 2030-08-01 | M106: 93 | N106: 47,328.95 | O106: 134.10 | P106: 1,626.55 | Q106: 1,760.65 | R106: 45,702.40
A107: 2030-09-01 | B107: 94 | C107: 427,334.37 | D107: 1,210.78 | E107: 9,667.79 | F107: 10,878.57 | G107: 417,666.58 | L107: 2030-09-01 | M107: 94 | N107: 45,702.40 | O107: 129.49 | P107: 1,631.16 | Q107: 1,760.65 | R107: 44,071.24
A108: 2030-10-01 | B108: 95 | C108: 417,666.58 | D108: 1,183.39 | E108: 9,695.18 | F108: 10,878.57 | G108: 407,971.40 | L108: 2030-10-01 | M108: 95 | N108: 44,071.24 | O108: 124.87 | P108: 1,635.78 | Q108: 1,760.65 | R108: 42,435.46
A109: 2030-11-01 | B109: 96 | C109: 407,971.40 | D109: 1,155.92 | E109: 9,722.65 | F109: 10,878.57 | G109: 398,248.75 | L109: 2030-11-01 | M109: 96 | N109: 42,435.46 | O109: 120.23 | P109: 1,640.41 | Q109: 1,760.65 | R109: 40,795.05
A110: 2030-12-01 | B110: 97 | C110: 398,248.75 | D110: 1,128.37 | E110: 9,750.20 | F110: 10,878.57 | G110: 388,498.55 | L110: 2030-12-01 | M110: 97 | N110: 40,795.05 | O110: 115.59 | P110: 1,645.06 | Q110: 1,760.65 | R110: 39,149.99
A111: 2031-01-01 | B111: 98 | C111: 388,498.55 | D111: 1,100.75 | E111: 9,777.83 | F111: 10,878.57 | G111: 378,720.72 | L111: 2031-01-01 | M111: 98 | N111: 39,149.99 | O111: 110.92 | P111: 1,649.72 | Q111: 1,760.65 | R111: 37,500.26
A112: 2031-02-01 | B112: 99 | C112: 378,720.72 | D112: 1,073.04 | E112: 9,805.53 | F112: 10,878.57 | G112: 368,915.19 | L112: 2031-02-01 | M112: 99 | N112: 37,500.26 | O112: 106.25 | P112: 1,654.40 | Q112: 1,760.65 | R112: 35,845.87
A113: 2031-03-01 | B113: 100 | C113: 368,915.19 | D113: 1,045.26 | E113: 9,833.31 | F113: 10,878.57 | G113: 359,081.88 | L113: 2031-03-01 | M113: 100 | N113: 35,845.87 | O113: 101.56 | P113: 1,659.08 | Q113: 1,760.65 | R113: 34,186.78
A114: 2031-04-01 | B114: 101 | C114: 359,081.88 | D114: 1,017.40 | E114: 9,861.17 | F114: 10,878.57 | G114: 349,220.71 | L114: 2031-04-01 | M114: 101 | N114: 34,186.78 | O114: 96.86 | P114: 1,663.79 | Q114: 1,760.65 | R114: 32,523.00
A115: 2031-05-01 | B115: 102 | C115: 349,220.71 | D115: 989.46 | E115: 9,889.11 | F115: 10,878.57 | G115: 339,331.59 | L115: 2031-05-01 | M115: 102 | N115: 32,523.00 | O115: 92.15 | P115: 1,668.50 | Q115: 1,760.65 | R115: 30,854.50
A116: 2031-06-01 | B116: 103 | C116: 339,331.59 | D116: 961.44 | E116: 9,917.13 | F116: 10,878.57 | G116: 329,414.46 | L116: 2031-06-01 | M116: 103 | N116: 30,854.50 | O116: 87.42 | P116: 1,673.23 | Q116: 1,760.65 | R116: 29,181.27
A117: 2031-07-01 | B117: 104 | C117: 329,414.46 | D117: 933.34 | E117: 9,945.23 | F117: 10,878.57 | G117: 319,469.23 | L117: 2031-07-01 | M117: 104 | N117: 29,181.27 | O117: 82.68 | P117: 1,677.97 | Q117: 1,760.65 | R117: 27,503.30
A118: 2031-08-01 | B118: 105 | C118: 319,469.23 | D118: 905.16 | E118: 9,973.41 | F118: 10,878.57 | G118: 309,495.82 | L118: 2031-08-01 | M118: 105 | N118: 27,503.30 | O118: 77.93 | P118: 1,682.72 | Q118: 1,760.65 | R118: 25,820.58
A119: 2031-09-01 | B119: 106 | C119: 309,495.82 | D119: 876.90 | E119: 10,001.67 | F119: 10,878.57 | G119: 299,494.15 | L119: 2031-09-01 | M119: 106 | N119: 25,820.58 | O119: 73.16 | P119: 1,687.49 | Q119: 1,760.65 | R119: 24,133.09
A120: 2031-10-01 | B120: 107 | C120: 299,494.15 | D120: 848.57 | E120: 10,030.00 | F120: 10,878.57 | G120: 289,464.15 | L120: 2031-10-01 | M120: 107 | N120: 24,133.09 | O120: 68.38 | P120: 1,692.27 | Q120: 1,760.65 | R120: 22,440.82
A121: 2031-11-01 | B121: 108 | C121: 289,464.15 | D121: 820.15 | E121: 10,058.42 | F121: 10,878.57 | G121: 279,405.73 | L121: 2031-11-01 | M121: 108 | N121: 22,440.82 | O121: 63.58 | P121: 1,697.07 | Q121: 1,760.65 | R121: 20,743.76
A122: 2031-12-01 | B122: 109 | C122: 279,405.73 | D122: 791.65 | E122: 10,086.92 | F122: 10,878.57 | G122: 269,318.80 | L122: 2031-12-01 | M122: 109 | N122: 20,743.76 | O122: 58.77 | P122: 1,701.87 | Q122: 1,760.65 | R122: 19,041.88
A123: 2032-01-01 | B123: 110 | C123: 269,318.80 | D123: 763.07 | E123: 10,115.50 | F123: 10,878.57 | G123: 259,203.30 | L123: 2032-01-01 | M123: 110 | N123: 19,041.88 | O123: 53.95 | P123: 1,706.70 | Q123: 1,760.65 | R123: 17,335.19
A124: 2032-02-01 | B124: 111 | C124: 259,203.30 | D124: 734.41 | E124: 10,144.16 | F124: 10,878.57 | G124: 249,059.14 | L124: 2032-02-01 | M124: 111 | N124: 17,335.19 | O124: 49.12 | P124: 1,711.53 | Q124: 1,760.65 | R124: 15,623.66
A125: 2032-03-01 | B125: 112 | C125: 249,059.14 | D125: 705.67 | E125: 10,172.90 | F125: 10,878.57 | G125: 238,886.24 | L125: 2032-03-01 | M125: 112 | N125: 15,623.66 | O125: 44.27 | P125: 1,716.38 | Q125: 1,760.65 | R125: 13,907.28
A126: 2032-04-01 | B126: 113 | C126: 238,886.24 | D126: 676.84 | E126: 10,201.73 | F126: 10,878.57 | G126: 228,684.51 | L126: 2032-04-01 | M126: 113 | N126: 13,907.28 | O126: 39.40 | P126: 1,721.24 | Q126: 1,760.65 | R126: 12,186.03
A127: 2032-05-01 | B127: 114 | C127: 228,684.51 | D127: 647.94 | E127: 10,230.63 | F127: 10,878.57 | G127: 218,453.88 | L127: 2032-05-01 | M127: 114 | N127: 12,186.03 | O127: 34.53 | P127: 1,726.12 | Q127: 1,760.65 | R127: 10,459.91
A128: 2032-06-01 | B128: 115 | C128: 218,453.88 | D128: 618.95 | E128: 10,259.62 | F128: 10,878.57 | G128: 208,194.26 | L128: 2032-06-01 | M128: 115 | N128: 10,459.91 | O128: 29.64 | P128: 1,731.01 | Q128: 1,760.65 | R128: 8,728.90
A129: 2032-07-01 | B129: 116 | C129: 208,194.26 | D129: 589.88 | E129: 10,288.69 | F129: 10,878.57 | G129: 197,905.57 | L129: 2032-07-01 | M129: 116 | N129: 8,728.90 | O129: 24.73 | P129: 1,735.92 | Q129: 1,760.65 | R129: 6,992.99
A130: 2032-08-01 | B130: 117 | C130: 197,905.57 | D130: 560.73 | E130: 10,317.84 | F130: 10,878.57 | G130: 187,587.73 | L130: 2032-08-01 | M130: 117 | N130: 6,992.99 | O130: 19.81 | P130: 1,740.83 | Q130: 1,760.65 | R130: 5,252.15
A131: 2032-09-01 | B131: 118 | C131: 187,587.73 | D131: 531.50 | E131: 10,347.07 | F131: 10,878.57 | G131: 177,240.66 | L131: 2032-09-01 | M131: 118 | N131: 5,252.15 | O131: 14.88 | P131: 1,745.77 | Q131: 1,760.65 | R131: 3,506.39
A132: 2032-10-01 | B132: 119 | C132: 177,240.66 | D132: 502.18 | E132: 10,376.39 | F132: 10,878.57 | G132: 166,864.27 | L132: 2032-10-01 | M132: 119 | N132: 3,506.39 | O132: 9.93 | P132: 1,750.71 | Q132: 1,760.65 | R132: 1,755.67
A133: 2032-11-01 | B133: 120 | C133: 166,864.27 | D133: =ROUND(C133*$E$10/12,2) -> 472.78 | E133: =C133-E9 -> 10,405.79 | F133: =D133+E133 -> 10,878.57 | G133: 156,458.48 | L133: 2032-11-01 | M133: 120 | N133: 1,755.67 | O133: 4.97 | P133: =N133-P9 -> 1,755.67 | Q133: =O133+P133 -> 1,760.64 | R133: 0.00

Sheet Annuiteedigraafik TS
B4: Kapitalikomponendi annuiteetmaksegraafik - | F4: Akadeemia tn 2, Pärnu | M4: Üürnikuspetsiifilise investeeringu annuiteetmaksegraafik
B6: Maksete algus | E6: 2022-12-01 | M6: Maksete algus | P6: =E6 -> 2022-12-01
B7: Maksete arv | E7: 120 | F7: kuud | M7: Maksete arv | P7: =E7 -> 120 | Q7: kuud
B8: Kapitali algväärtus | D8: =E6-1 -> 2022-11-30 | E8: 112,036.24 | F8: EUR (km-ta) | M8: Üürniku spetsiifiline algväärtus | O8: =P6-1 -> 2022-11-30 | P8: 80,130 | Q8: EUR (km-ta)
B9: Kapitali lõppväärtus | D9: =EDATE(D8,E7) -> 2032-11-30 | E9: 0 | F9: EUR (km-ta) | M9: Üürniku spetsiifiline lõppväärtus | O9: =EDATE(O8,P7) -> 2032-11-30 | P9: 0 | Q9: EUR (km-ta)
B10: Kapitali tulumäär 2022 I pa | E10: 3.4% | M10: Kapitali tulumäär 2022 I pa | P10: 3.4%
A13: Kuupäev | B13: Jrk nr | C13: Algjääk | D13: Intress | E13: Põhiosa | F13: Kap.komponent | G13: Lõppjääk | L13: Kuupäev | M13: Jrk nr | N13: Algjääk | O13: Intress | P13: Põhiosa | Q13: Kap.komponent | R13: Lõppjääk
A14: =E6 -> 2022-12-01 | B14: 1 | C14: =E8 -> 112,036.24 | D14: =ROUND(C14*$E$10/12,2) -> 317.44 | E14: =PPMT($E$10/12,B14,$E$7,-$E$8,$E$9,0) -> 785.20 | F14: =ROUND(PMT($E$10/12,E7,-E8,E9),2) -> 1,102.64 | G14: =C14-E14 -> 111,251.04 | L14: =P6 -> 2022-12-01 | M14: 1 | N14: =P8 -> 80,130.15 | O14: =ROUND(N14*$P$10/12,2) -> 227.04 | P14: =PPMT($P$10/12,M14,$P$7,-$P$8,$P$9,0) -> 561.59 | Q14: =ROUND(PMT($P$10/12,P7,-P8,P9),2) -> 788.63 | R14: =N14-P14 -> 79,568.56
A15: =EDATE(A14,1) -> 2023-01-01 | B15: 2 | C15: =G14 -> 111,251.04 | D15: =ROUND(C15*$E$10/12,2) -> 315.21 | E15: 787.43 | F15: =F14 -> 1,102.64 | G15: =C15-E15 -> 110,463.61 | L15: =EDATE(L14,1) -> 2023-01-01 | M15: 2 | N15: =R14 -> 79,568.56 | O15: =ROUND(N15*$P$10/12,2) -> 225.44 | P15: =PPMT($P$10/12,M15,$P$7,-$P$8,$P$9,0) -> 563.18 | Q15: =Q14 -> 788.63 | R15: =N15-P15 -> 79,005.38
A16: =EDATE(A15,1) -> 2023-02-01 | B16: 3 | C16: =G15 -> 110,463.61 | D16: 312.98 | E16: 789.66 | F16: =F15 -> 1,102.64 | G16: 109,673.95 | L16: =EDATE(L15,1) -> 2023-02-01 | M16: 3 | N16: =R15 -> 79,005.38 | O16: 223.85 | P16: 564.78 | Q16: =Q15 -> 788.63 | R16: 78,440.61
A17: =EDATE(A16,1) -> 2023-03-01 | B17: 4 | C17: =G16 -> 109,673.95 | D17: 310.74 | E17: 791.90 | F17: 1,102.64 | G17: 108,882.05 | L17: =EDATE(L16,1) -> 2023-03-01 | M17: 4 | N17: =R16 -> 78,440.61 | O17: 222.25 | P17: 566.38 | Q17: 788.63 | R17: 77,874.23
A18: 2023-04-01 | B18: 5 | C18: 108,882.05 | D18: 308.50 | E18: 794.14 | F18: 1,102.64 | G18: 108,087.91 | L18: 2023-04-01 | M18: 5 | N18: 77,874.23 | O18: 220.64 | P18: 567.98 | Q18: 788.63 | R18: 77,306.25
A19: 2023-05-01 | B19: 6 | C19: 108,087.91 | D19: 306.25 | E19: 796.39 | F19: 1,102.64 | G19: 107,291.52 | L19: 2023-05-01 | M19: 6 | N19: 77,306.25 | O19: 219.03 | P19: 569.59 | Q19: 788.63 | R19: 76,736.65
A20: 2023-06-01 | B20: 7 | C20: 107,291.52 | D20: 303.99 | E20: 798.65 | F20: 1,102.64 | G20: 106,492.88 | L20: 2023-06-01 | M20: 7 | N20: 76,736.65 | O20: 217.42 | P20: 571.21 | Q20: 788.63 | R20: 76,165.45
A21: =EDATE(A20,1) -> 2023-07-01 | B21: 8 | C21: 106,492.88 | D21: 301.73 | E21: 800.91 | F21: 1,102.64 | G21: 105,691.97 | L21: =EDATE(L20,1) -> 2023-07-01 | M21: 8 | N21: 76,165.45 | O21: 215.80 | P21: 572.82 | Q21: 788.63 | R21: 75,592.63
A22: 2023-08-01 | B22: 9 | C22: 105,691.97 | D22: 299.46 | E22: 803.18 | F22: 1,102.64 | G22: 104,888.79 | L22: 2023-08-01 | M22: 9 | N22: 75,592.63 | O22: 214.18 | P22: 574.45 | Q22: 788.63 | R22: 75,018.18
A23: 2023-09-01 | B23: 10 | C23: 104,888.79 | D23: 297.18 | E23: 805.45 | F23: 1,102.64 | G23: 104,083.33 | L23: 2023-09-01 | M23: 10 | N23: 75,018.18 | O23: 212.55 | P23: 576.07 | Q23: 788.63 | R23: 74,442.10
A24: 2023-10-01 | B24: 11 | C24: 104,083.33 | D24: 294.90 | E24: 807.74 | F24: 1,102.64 | G24: 103,275.60 | L24: 2023-10-01 | M24: 11 | N24: 74,442.10 | O24: 210.92 | P24: 577.71 | Q24: 788.63 | R24: 73,864.40
A25: 2023-11-01 | B25: 12 | C25: 103,275.60 | D25: 292.61 | E25: 810.03 | F25: 1,102.64 | G25: 102,465.57 | L25: 2023-11-01 | M25: 12 | N25: 73,864.40 | O25: 209.28 | P25: 579.34 | Q25: 788.63 | R25: 73,285.05
A26: 2023-12-01 | B26: 13 | C26: 102,465.57 | D26: 290.32 | E26: 812.32 | F26: 1,102.64 | G26: 101,653.25 | L26: 2023-12-01 | M26: 13 | N26: 73,285.05 | O26: 207.64 | P26: 580.98 | Q26: 788.63 | R26: 72,704.07
A27: 2024-01-01 | B27: 14 | C27: 101,653.25 | D27: 288.02 | E27: 814.62 | F27: 1,102.64 | G27: 100,838.63 | L27: 2024-01-01 | M27: 14 | N27: 72,704.07 | O27: 205.99 | P27: 582.63 | Q27: 788.63 | R27: 72,121.44
A28: 2024-02-01 | B28: 15 | C28: 100,838.63 | D28: 285.71 | E28: 816.93 | F28: 1,102.64 | G28: 100,021.70 | L28: 2024-02-01 | M28: 15 | N28: 72,121.44 | O28: 204.34 | P28: 584.28 | Q28: 788.63 | R28: 71,537.16
A29: 2024-03-01 | B29: 16 | C29: 100,021.70 | D29: 283.39 | E29: 819.24 | F29: 1,102.64 | G29: 99,202.45 | L29: 2024-03-01 | M29: 16 | N29: 71,537.16 | O29: 202.69 | P29: 585.94 | Q29: 788.63 | R29: 70,951.22
A30: 2024-04-01 | B30: 17 | C30: 99,202.45 | D30: 281.07 | E30: 821.57 | F30: 1,102.64 | G30: 98,380.89 | L30: 2024-04-01 | M30: 17 | N30: 70,951.22 | O30: 201.03 | P30: 587.60 | Q30: 788.63 | R30: 70,363.62
A31: 2024-05-01 | B31: 18 | C31: 98,380.89 | D31: 278.75 | E31: 823.89 | F31: 1,102.64 | G31: 97,557.00 | L31: 2024-05-01 | M31: 18 | N31: 70,363.62 | O31: 199.36 | P31: 589.26 | Q31: 788.63 | R31: 69,774.36
A32: 2024-06-01 | B32: 19 | C32: 97,557.00 | D32: 276.41 | E32: 826.23 | F32: 1,102.64 | G32: 96,730.77 | L32: 2024-06-01 | M32: 19 | N32: 69,774.36 | O32: 197.69 | P32: 590.93 | Q32: 788.63 | R32: 69,183.43
A33: 2024-07-01 | B33: 20 | C33: 96,730.77 | D33: 274.07 | E33: 828.57 | F33: 1,102.64 | G33: 95,902.20 | L33: 2024-07-01 | M33: 20 | N33: 69,183.43 | O33: 196.02 | P33: 592.61 | Q33: 788.63 | R33: 68,590.82
A34: 2024-08-01 | B34: 21 | C34: 95,902.20 | D34: 271.72 | E34: 830.92 | F34: 1,102.64 | G34: 95,071.28 | L34: 2024-08-01 | M34: 21 | N34: 68,590.82 | O34: 194.34 | P34: 594.29 | Q34: 788.63 | R34: 67,996.54
A35: 2024-09-01 | B35: 22 | C35: 95,071.28 | D35: 269.37 | E35: 833.27 | F35: 1,102.64 | G35: 94,238.01 | L35: 2024-09-01 | M35: 22 | N35: 67,996.54 | O35: 192.66 | P35: 595.97 | Q35: 788.63 | R35: 67,400.57
A36: 2024-10-01 | B36: 23 | C36: 94,238.01 | D36: 267.01 | E36: 835.63 | F36: 1,102.64 | G36: 93,402.38 | L36: 2024-10-01 | M36: 23 | N36: 67,400.57 | O36: 190.97 | P36: 597.66 | Q36: 788.63 | R36: 66,802.91
A37: 2024-11-01 | B37: 24 | C37: 93,402.38 | D37: 264.64 | E37: 838.00 | F37: 1,102.64 | G37: 92,564.38 | L37: 2024-11-01 | M37: 24 | N37: 66,802.91 | O37: 189.27 | P37: 599.35 | Q37: 788.63 | R37: 66,203.56
A38: 2024-12-01 | B38: 25 | C38: 92,564.38 | D38: 262.27 | E38: 840.37 | F38: 1,102.64 | G38: 91,724.01 | L38: 2024-12-01 | M38: 25 | N38: 66,203.56 | O38: 187.58 | P38: 601.05 | Q38: 788.63 | R38: 65,602.51
A39: 2025-01-01 | B39: 26 | C39: 91,724.01 | D39: 259.88 | E39: 842.75 | F39: 1,102.64 | G39: 90,881.25 | L39: 2025-01-01 | M39: 26 | N39: 65,602.51 | O39: 185.87 | P39: 602.75 | Q39: 788.63 | R39: 64,999.76
A40: 2025-02-01 | B40: 27 | C40: 90,881.25 | D40: 257.50 | E40: 845.14 | F40: 1,102.64 | G40: 90,036.11 | L40: 2025-02-01 | M40: 27 | N40: 64,999.76 | O40: 184.17 | P40: 604.46 | Q40: 788.63 | R40: 64,395.30
A41: 2025-03-01 | B41: 28 | C41: 90,036.11 | D41: 255.10 | E41: 847.54 | F41: 1,102.64 | G41: 89,188.57 | L41: 2025-03-01 | M41: 28 | N41: 64,395.30 | O41: 182.45 | P41: 606.17 | Q41: 788.63 | R41: 63,789.13
A42: 2025-04-01 | B42: 29 | C42: 89,188.57 | D42: 252.70 | E42: 849.94 | F42: 1,102.64 | G42: 88,338.63 | L42: 2025-04-01 | M42: 29 | N42: 63,789.13 | O42: 180.74 | P42: 607.89 | Q42: 788.63 | R42: 63,181.24
A43: 2025-05-01 | B43: 30 | C43: 88,338.63 | D43: 250.29 | E43: 852.35 | F43: 1,102.64 | G43: 87,486.29 | L43: 2025-05-01 | M43: 30 | N43: 63,181.24 | O43: 179.01 | P43: 609.61 | Q43: 788.63 | R43: 62,571.62
A44: 2025-06-01 | B44: 31 | C44: 87,486.29 | D44: 247.88 | E44: 854.76 | F44: 1,102.64 | G44: 86,631.52 | L44: 2025-06-01 | M44: 31 | N44: 62,571.62 | O44: 177.29 | P44: 611.34 | Q44: 788.63 | R44: 61,960.28
A45: 2025-07-01 | B45: 32 | C45: 86,631.52 | D45: 245.46 | E45: 857.18 | F45: 1,102.64 | G45: 85,774.34 | L45: 2025-07-01 | M45: 32 | N45: 61,960.28 | O45: 175.55 | P45: 613.07 | Q45: 788.63 | R45: 61,347.21
A46: 2025-08-01 | B46: 33 | C46: 85,774.34 | D46: 243.03 | E46: 859.61 | F46: 1,102.64 | G46: 84,914.73 | L46: 2025-08-01 | M46: 33 | N46: 61,347.21 | O46: 173.82 | P46: 614.81 | Q46: 788.63 | R46: 60,732.40
A47: 2025-09-01 | B47: 34 | C47: 84,914.73 | D47: 240.59 | E47: 862.05 | F47: 1,102.64 | G47: 84,052.68 | L47: 2025-09-01 | M47: 34 | N47: 60,732.40 | O47: 172.08 | P47: 616.55 | Q47: 788.63 | R47: 60,115.85
A48: 2025-10-01 | B48: 35 | C48: 84,052.68 | D48: 238.15 | E48: 864.49 | F48: 1,102.64 | G48: 83,188.19 | L48: 2025-10-01 | M48: 35 | N48: 60,115.85 | O48: 170.33 | P48: 618.30 | Q48: 788.63 | R48: 59,497.56
A49: 2025-11-01 | B49: 36 | C49: 83,188.19 | D49: 235.70 | E49: 866.94 | F49: 1,102.64 | G49: 82,321.25 | L49: 2025-11-01 | M49: 36 | N49: 59,497.56 | O49: 168.58 | P49: 620.05 | Q49: 788.63 | R49: 58,877.51
A50: 2025-12-01 | B50: 37 | C50: 82,321.25 | D50: 233.24 | E50: 869.40 | F50: 1,102.64 | G50: 81,451.86 | L50: 2025-12-01 | M50: 37 | N50: 58,877.51 | O50: 166.82 | P50: 621.81 | Q50: 788.63 | R50: 58,255.70
A51: 2026-01-01 | B51: 38 | C51: 81,451.86 | D51: 230.78 | E51: 871.86 | F51: 1,102.64 | G51: 80,580.00 | L51: 2026-01-01 | M51: 38 | N51: 58,255.70 | O51: 165.06 | P51: 623.57 | Q51: 788.63 | R51: 57,632.13
A52: 2026-02-01 | B52: 39 | C52: 80,580.00 | D52: 228.31 | E52: 874.33 | F52: 1,102.64 | G52: 79,705.67 | L52: 2026-02-01 | M52: 39 | N52: 57,632.13 | O52: 163.29 | P52: 625.33 | Q52: 788.63 | R52: 57,006.80
A53: 2026-03-01 | B53: 40 | C53: 79,705.67 | D53: 225.83 | E53: 876.81 | F53: 1,102.64 | G53: 78,828.86 | L53: 2026-03-01 | M53: 40 | N53: 57,006.80 | O53: 161.52 | P53: 627.11 | Q53: 788.63 | R53: 56,379.69
A54: 2026-04-01 | B54: 41 | C54: 78,828.86 | D54: 223.35 | E54: 879.29 | F54: 1,102.64 | G54: 77,949.57 | L54: 2026-04-01 | M54: 41 | N54: 56,379.69 | O54: 159.74 | P54: 628.88 | Q54: 788.63 | R54: 55,750.81
A55: 2026-05-01 | B55: 42 | C55: 77,949.57 | D55: 220.86 | E55: 881.78 | F55: 1,102.64 | G55: 77,067.79 | L55: 2026-05-01 | M55: 42 | N55: 55,750.81 | O55: 157.96 | P55: 630.67 | Q55: 788.63 | R55: 55,120.14
A56: 2026-06-01 | B56: 43 | C56: 77,067.79 | D56: 218.36 | E56: 884.28 | F56: 1,102.64 | G56: 76,183.51 | L56: 2026-06-01 | M56: 43 | N56: 55,120.14 | O56: 156.17 | P56: 632.45 | Q56: 788.63 | R56: 54,487.69
A57: 2026-07-01 | B57: 44 | C57: 76,183.51 | D57: 215.85 | E57: 886.79 | F57: 1,102.64 | G57: 75,296.72 | L57: 2026-07-01 | M57: 44 | N57: 54,487.69 | O57: 154.38 | P57: 634.24 | Q57: 788.63 | R57: 53,853.45
A58: 2026-08-01 | B58: 45 | C58: 75,296.72 | D58: 213.34 | E58: 889.30 | F58: 1,102.64 | G58: 74,407.42 | L58: 2026-08-01 | M58: 45 | N58: 53,853.45 | O58: 152.58 | P58: 636.04 | Q58: 788.63 | R58: 53,217.41
A59: 2026-09-01 | B59: 46 | C59: 74,407.42 | D59: 210.82 | E59: 891.82 | F59: 1,102.64 | G59: 73,515.60 | L59: 2026-09-01 | M59: 46 | N59: 53,217.41 | O59: 150.78 | P59: 637.84 | Q59: 788.63 | R59: 52,579.56
A60: 2026-10-01 | B60: 47 | C60: 73,515.60 | D60: 208.29 | E60: 894.35 | F60: 1,102.64 | G60: 72,621.26 | L60: 2026-10-01 | M60: 47 | N60: 52,579.56 | O60: 148.98 | P60: 639.65 | Q60: 788.63 | R60: 51,939.91
A61: 2026-11-01 | B61: 48 | C61: 72,621.26 | D61: 205.76 | E61: 896.88 | F61: 1,102.64 | G61: 71,724.38 | L61: 2026-11-01 | M61: 48 | N61: 51,939.91 | O61: 147.16 | P61: 641.46 | Q61: 788.63 | R61: 51,298.45
A62: 2026-12-01 | B62: 49 | C62: 71,724.38 | D62: 203.22 | E62: 899.42 | F62: 1,102.64 | G62: 70,824.96 | L62: 2026-12-01 | M62: 49 | N62: 51,298.45 | O62: 145.35 | P62: 643.28 | Q62: 788.63 | R62: 50,655.17
A63: 2027-01-01 | B63: 50 | C63: 70,824.96 | D63: 200.67 | E63: 901.97 | F63: 1,102.64 | G63: 69,922.99 | L63: 2027-01-01 | M63: 50 | N63: 50,655.17 | O63: 143.52 | P63: 645.10 | Q63: 788.63 | R63: 50,010.07
A64: 2027-02-01 | B64: 51 | C64: 69,922.99 | D64: 198.12 | E64: 904.52 | F64: 1,102.64 | G64: 69,018.46 | L64: 2027-02-01 | M64: 51 | N64: 50,010.07 | O64: 141.70 | P64: 646.93 | Q64: 788.63 | R64: 49,363.14
A65: 2027-03-01 | B65: 52 | C65: 69,018.46 | D65: 195.55 | E65: 907.09 | F65: 1,102.64 | G65: 68,111.38 | L65: 2027-03-01 | M65: 52 | N65: 49,363.14 | O65: 139.86 | P65: 648.76 | Q65: 788.63 | R65: 48,714.37
A66: 2027-04-01 | B66: 53 | C66: 68,111.38 | D66: 192.98 | E66: 909.66 | F66: 1,102.64 | G66: 67,201.72 | L66: 2027-04-01 | M66: 53 | N66: 48,714.37 | O66: 138.02 | P66: 650.60 | Q66: 788.63 | R66: 48,063.77
A67: 2027-05-01 | B67: 54 | C67: 67,201.72 | D67: 190.40 | E67: 912.23 | F67: 1,102.64 | G67: 66,289.48 | L67: 2027-05-01 | M67: 54 | N67: 48,063.77 | O67: 136.18 | P67: 652.45 | Q67: 788.63 | R67: 47,411.33
A68: 2027-06-01 | B68: 55 | C68: 66,289.48 | D68: 187.82 | E68: 914.82 | F68: 1,102.64 | G68: 65,374.67 | L68: 2027-06-01 | M68: 55 | N68: 47,411.33 | O68: 134.33 | P68: 654.29 | Q68: 788.63 | R68: 46,757.03
A69: 2027-07-01 | B69: 56 | C69: 65,374.67 | D69: 185.23 | E69: 917.41 | F69: 1,102.64 | G69: 64,457.25 | L69: 2027-07-01 | M69: 56 | N69: 46,757.03 | O69: 132.48 | P69: 656.15 | Q69: 788.63 | R69: 46,100.88
A70: 2027-08-01 | B70: 57 | C70: 64,457.25 | D70: 182.63 | E70: 920.01 | F70: 1,102.64 | G70: 63,537.24 | L70: 2027-08-01 | M70: 57 | N70: 46,100.88 | O70: 130.62 | P70: 658.01 | Q70: 788.63 | R70: 45,442.88
A71: 2027-09-01 | B71: 58 | C71: 63,537.24 | D71: 180.02 | E71: 922.62 | F71: 1,102.64 | G71: 62,614.63 | L71: 2027-09-01 | M71: 58 | N71: 45,442.88 | O71: 128.75 | P71: 659.87 | Q71: 788.63 | R71: 44,783.01
A72: 2027-10-01 | B72: 59 | C72: 62,614.63 | D72: 177.41 | E72: 925.23 | F72: 1,102.64 | G72: 61,689.40 | L72: 2027-10-01 | M72: 59 | N72: 44,783.01 | O72: 126.89 | P72: 661.74 | Q72: 788.63 | R72: 44,121.27
A73: 2027-11-01 | B73: 60 | C73: =G72 -> 61,689.40 | D73: =ROUND(C73*$E$10/12,2) -> 174.79 | E73: 927.85 | F73: 1,102.64 | G73: =C73-E73 -> 60,761.54 | L73: 2027-11-01 | M73: 60 | N73: =R72 -> 44,121.27 | O73: 125.01 | P73: 663.62 | Q73: 788.63 | R73: =N73-P73 -> 43,457.65
A74: 2027-12-01 | B74: 61 | C74: =G73 -> 60,761.54 | D74: =ROUND(C74*$E$10/12,2) -> 172.16 | E74: 930.48 | F74: 1,102.64 | G74: =C74-E74 -> 59,831.06 | L74: 2027-12-01 | M74: 61 | N74: =R73 -> 43,457.65 | O74: 123.13 | P74: 665.50 | Q74: 788.63 | R74: =N74-P74 -> 42,792.15
A75: 2028-01-01 | B75: 62 | C75: 59,831.06 | D75: 169.52 | E75: 933.12 | F75: 1,102.64 | G75: 58,897.94 | L75: 2028-01-01 | M75: 62 | N75: 42,792.15 | O75: 121.24 | P75: 667.38 | Q75: 788.63 | R75: 42,124.77
A76: 2028-02-01 | B76: 63 | C76: 58,897.94 | D76: 166.88 | E76: 935.76 | F76: 1,102.64 | G76: 57,962.18 | L76: 2028-02-01 | M76: 63 | N76: 42,124.77 | O76: 119.35 | P76: 669.27 | Q76: 788.63 | R76: 41,455.50
A77: 2028-03-01 | B77: 64 | C77: 57,962.18 | D77: 164.23 | E77: 938.41 | F77: 1,102.64 | G77: 57,023.77 | L77: 2028-03-01 | M77: 64 | N77: 41,455.50 | O77: 117.46 | P77: 671.17 | Q77: 788.63 | R77: 40,784.33
A78: 2028-04-01 | B78: 65 | C78: 57,023.77 | D78: 161.57 | E78: =PPMT($E$10/12,B78,$E$7,-$E$8,$E$9,0) -> 941.07 | F78: 1,102.64 | G78: 56,082.70 | L78: 2028-04-01 | M78: 65 | N78: 40,784.33 | O78: 115.56 | P78: 673.07 | Q78: 788.63 | R78: 40,111.26
A79: 2028-05-01 | B79: 66 | C79: 56,082.70 | D79: 158.90 | E79: 943.74 | F79: 1,102.64 | G79: 55,138.96 | L79: 2028-05-01 | M79: 66 | N79: 40,111.26 | O79: =ROUND(N79*$P$10/12,2) -> 113.65 | P79: =PPMT($P$10/12,M79,$P$7,-$P$8,$P$9,0) -> 674.98 | Q79: 788.63 | R79: 39,436.28
A80: 2028-06-01 | B80: 67 | C80: 55,138.96 | D80: 156.23 | E80: 946.41 | F80: =F79 -> 1,102.64 | G80: 54,192.54 | L80: 2028-06-01 | M80: 67 | N80: 39,436.28 | O80: 111.74 | P80: 676.89 | Q80: =Q79 -> 788.63 | R80: 38,759.39
A81: =EDATE(A80,1) -> 2028-07-01 | B81: 68 | C81: 54,192.54 | D81: 153.55 | E81: 949.09 | F81: 1,102.64 | G81: 53,243.45 | L81: =EDATE(L80,1) -> 2028-07-01 | M81: 68 | N81: 38,759.39 | O81: 109.82 | P81: 678.81 | Q81: 788.63 | R81: 38,080.59
A82: 2028-08-01 | B82: 69 | C82: 53,243.45 | D82: 150.86 | E82: 951.78 | F82: 1,102.64 | G82: 52,291.67 | L82: 2028-08-01 | M82: 69 | N82: 38,080.59 | O82: 107.89 | P82: 680.73 | Q82: 788.63 | R82: 37,399.86
A83: 2028-09-01 | B83: 70 | C83: 52,291.67 | D83: 148.16 | E83: 954.48 | F83: 1,102.64 | G83: 51,337.19 | L83: 2028-09-01 | M83: 70 | N83: 37,399.86 | O83: 105.97 | P83: 682.66 | Q83: 788.63 | R83: 36,717.20
A84: 2028-10-01 | B84: 71 | C84: 51,337.19 | D84: 145.46 | E84: 957.18 | F84: 1,102.64 | G84: 50,380.00 | L84: 2028-10-01 | M84: 71 | N84: 36,717.20 | O84: 104.03 | P84: 684.59 | Q84: 788.63 | R84: 36,032.60
A85: 2028-11-01 | B85: 72 | C85: 50,380.00 | D85: 142.74 | E85: 959.90 | F85: 1,102.64 | G85: 49,420.11 | L85: 2028-11-01 | M85: 72 | N85: 36,032.60 | O85: 102.09 | P85: 686.53 | Q85: 788.63 | R85: 35,346.07
A86: 2028-12-01 | B86: 73 | C86: 49,420.11 | D86: 140.02 | E86: 962.62 | F86: 1,102.64 | G86: 48,457.49 | L86: 2028-12-01 | M86: 73 | N86: 35,346.07 | O86: 100.15 | P86: 688.48 | Q86: 788.63 | R86: 34,657.59
A87: 2029-01-01 | B87: 74 | C87: 48,457.49 | D87: 137.30 | E87: 965.34 | F87: 1,102.64 | G87: 47,492.15 | L87: 2029-01-01 | M87: 74 | N87: 34,657.59 | O87: 98.20 | P87: 690.43 | Q87: 788.63 | R87: 33,967.16
A88: 2029-02-01 | B88: 75 | C88: 47,492.15 | D88: 134.56 | E88: 968.08 | F88: 1,102.64 | G88: 46,524.07 | L88: 2029-02-01 | M88: 75 | N88: 33,967.16 | O88: 96.24 | P88: 692.39 | Q88: 788.63 | R88: 33,274.78
A89: 2029-03-01 | B89: 76 | C89: 46,524.07 | D89: 131.82 | E89: 970.82 | F89: 1,102.64 | G89: 45,553.25 | L89: 2029-03-01 | M89: 76 | N89: 33,274.78 | O89: 94.28 | P89: 694.35 | Q89: 788.63 | R89: 32,580.43
A90: 2029-04-01 | B90: 77 | C90: 45,553.25 | D90: 129.07 | E90: 973.57 | F90: 1,102.64 | G90: 44,579.68 | L90: 2029-04-01 | M90: 77 | N90: 32,580.43 | O90: 92.31 | P90: 696.31 | Q90: 788.63 | R90: 31,884.11
A91: 2029-05-01 | B91: 78 | C91: 44,579.68 | D91: 126.31 | E91: 976.33 | F91: 1,102.64 | G91: 43,603.35 | L91: 2029-05-01 | M91: 78 | N91: 31,884.11 | O91: 90.34 | P91: 698.29 | Q91: 788.63 | R91: 31,185.83
A92: 2029-06-01 | B92: 79 | C92: 43,603.35 | D92: 123.54 | E92: 979.10 | F92: 1,102.64 | G92: 42,624.25 | L92: 2029-06-01 | M92: 79 | N92: 31,185.83 | O92: 88.36 | P92: 700.27 | Q92: 788.63 | R92: 30,485.56
A93: 2029-07-01 | B93: 80 | C93: 42,624.25 | D93: 120.77 | E93: 981.87 | F93: 1,102.64 | G93: 41,642.38 | L93: 2029-07-01 | M93: 80 | N93: 30,485.56 | O93: 86.38 | P93: 702.25 | Q93: 788.63 | R93: 29,783.31
A94: 2029-08-01 | B94: 81 | C94: 41,642.38 | D94: 117.99 | E94: 984.65 | F94: 1,102.64 | G94: 40,657.73 | L94: 2029-08-01 | M94: 81 | N94: 29,783.31 | O94: 84.39 | P94: 704.24 | Q94: 788.63 | R94: 29,079.07
A95: 2029-09-01 | B95: 82 | C95: 40,657.73 | D95: 115.20 | E95: 987.44 | F95: 1,102.64 | G95: 39,670.28 | L95: 2029-09-01 | M95: 82 | N95: 29,079.07 | O95: 82.39 | P95: 706.24 | Q95: 788.63 | R95: 28,372.84
A96: 2029-10-01 | B96: 83 | C96: 39,670.28 | D96: 112.40 | E96: 990.24 | F96: 1,102.64 | G96: 38,680.04 | L96: 2029-10-01 | M96: 83 | N96: 28,372.84 | O96: 80.39 | P96: 708.24 | Q96: 788.63 | R96: 27,664.60
A97: 2029-11-01 | B97: 84 | C97: 38,680.04 | D97: 109.59 | E97: 993.05 | F97: 1,102.64 | G97: 37,687.00 | L97: 2029-11-01 | M97: 84 | N97: 27,664.60 | O97: 78.38 | P97: 710.24 | Q97: 788.63 | R97: 26,954.36
A98: 2029-12-01 | B98: 85 | C98: 37,687.00 | D98: 106.78 | E98: 995.86 | F98: 1,102.64 | G98: 36,691.14 | L98: 2029-12-01 | M98: 85 | N98: 26,954.36 | O98: 76.37 | P98: 712.26 | Q98: 788.63 | R98: 26,242.10
A99: 2030-01-01 | B99: 86 | C99: 36,691.14 | D99: 103.96 | E99: 998.68 | F99: 1,102.64 | G99: 35,692.46 | L99: 2030-01-01 | M99: 86 | N99: 26,242.10 | O99: 74.35 | P99: 714.27 | Q99: 788.63 | R99: 25,527.83
A100: 2030-02-01 | B100: 87 | C100: 35,692.46 | D100: 101.13 | E100: 1,001.51 | F100: 1,102.64 | G100: 34,690.95 | L100: 2030-02-01 | M100: 87 | N100: 25,527.83 | O100: 72.33 | P100: 716.30 | Q100: 788.63 | R100: 24,811.53
A101: 2030-03-01 | B101: 88 | C101: 34,690.95 | D101: 98.29 | E101: 1,004.35 | F101: 1,102.64 | G101: 33,686.60 | L101: 2030-03-01 | M101: 88 | N101: 24,811.53 | O101: 70.30 | P101: 718.33 | Q101: 788.63 | R101: 24,093.21
A102: 2030-04-01 | B102: 89 | C102: 33,686.60 | D102: 95.45 | E102: 1,007.19 | F102: 1,102.64 | G102: 32,679.40 | L102: 2030-04-01 | M102: 89 | N102: 24,093.21 | O102: 68.26 | P102: 720.36 | Q102: 788.63 | R102: 23,372.84
A103: 2030-05-01 | B103: 90 | C103: 32,679.40 | D103: 92.59 | E103: 1,010.05 | F103: 1,102.64 | G103: 31,669.35 | L103: 2030-05-01 | M103: 90 | N103: 23,372.84 | O103: 66.22 | P103: 722.40 | Q103: 788.63 | R103: 22,650.44
A104: 2030-06-01 | B104: 91 | C104: 31,669.35 | D104: 89.73 | E104: 1,012.91 | F104: 1,102.64 | G104: 30,656.45 | L104: 2030-06-01 | M104: 91 | N104: 22,650.44 | O104: 64.18 | P104: 724.45 | Q104: 788.63 | R104: 21,925.99
A105: 2030-07-01 | B105: 92 | C105: 30,656.45 | D105: 86.86 | E105: 1,015.78 | F105: 1,102.64 | G105: 29,640.67 | L105: 2030-07-01 | M105: 92 | N105: 21,925.99 | O105: 62.12 | P105: 726.50 | Q105: 788.63 | R105: 21,199.49
A106: 2030-08-01 | B106: 93 | C106: 29,640.67 | D106: 83.98 | E106: 1,018.66 | F106: 1,102.64 | G106: 28,622.01 | L106: 2030-08-01 | M106: 93 | N106: 21,199.49 | O106: 60.07 | P106: 728.56 | Q106: 788.63 | R106: 20,470.93
A107: 2030-09-01 | B107: 94 | C107: 28,622.01 | D107: 81.10 | E107: 1,021.54 | F107: 1,102.64 | G107: 27,600.46 | L107: 2030-09-01 | M107: 94 | N107: 20,470.93 | O107: 58.00 | P107: 730.62 | Q107: 788.63 | R107: 19,740.30
A108: 2030-10-01 | B108: 95 | C108: 27,600.46 | D108: 78.20 | E108: 1,024.44 | F108: 1,102.64 | G108: 26,576.03 | L108: 2030-10-01 | M108: 95 | N108: 19,740.30 | O108: 55.93 | P108: 732.69 | Q108: 788.63 | R108: 19,007.61
A109: 2030-11-01 | B109: 96 | C109: 26,576.03 | D109: 75.30 | E109: 1,027.34 | F109: 1,102.64 | G109: 25,548.69 | L109: 2030-11-01 | M109: 96 | N109: 19,007.61 | O109: 53.85 | P109: 734.77 | Q109: 788.63 | R109: 18,272.84
A110: 2030-12-01 | B110: 97 | C110: 25,548.69 | D110: 72.39 | E110: 1,030.25 | F110: 1,102.64 | G110: 24,518.43 | L110: 2030-12-01 | M110: 97 | N110: 18,272.84 | O110: 51.77 | P110: 736.85 | Q110: 788.63 | R110: 17,535.99
A111: 2031-01-01 | B111: 98 | C111: 24,518.43 | D111: 69.47 | E111: 1,033.17 | F111: 1,102.64 | G111: 23,485.26 | L111: 2031-01-01 | M111: 98 | N111: 17,535.99 | O111: 49.69 | P111: 738.94 | Q111: 788.63 | R111: 16,797.04
A112: 2031-02-01 | B112: 99 | C112: 23,485.26 | D112: 66.54 | E112: 1,036.10 | F112: 1,102.64 | G112: 22,449.17 | L112: 2031-02-01 | M112: 99 | N112: 16,797.04 | O112: 47.59 | P112: 741.03 | Q112: 788.63 | R112: 16,056.01
A113: 2031-03-01 | B113: 100 | C113: 22,449.17 | D113: 63.61 | E113: 1,039.03 | F113: 1,102.64 | G113: 21,410.13 | L113: 2031-03-01 | M113: 100 | N113: 16,056.01 | O113: 45.49 | P113: 743.13 | Q113: 788.63 | R113: 15,312.88
A114: 2031-04-01 | B114: 101 | C114: 21,410.13 | D114: 60.66 | E114: 1,041.98 | F114: 1,102.64 | G114: 20,368.15 | L114: 2031-04-01 | M114: 101 | N114: 15,312.88 | O114: 43.39 | P114: 745.24 | Q114: 788.63 | R114: 14,567.64
A115: 2031-05-01 | B115: 102 | C115: 20,368.15 | D115: 57.71 | E115: 1,044.93 | F115: 1,102.64 | G115: 19,323.22 | L115: 2031-05-01 | M115: 102 | N115: 14,567.64 | O115: 41.27 | P115: 747.35 | Q115: 788.63 | R115: 13,820.29
A116: 2031-06-01 | B116: 103 | C116: 19,323.22 | D116: 54.75 | E116: 1,047.89 | F116: 1,102.64 | G116: 18,275.33 | L116: 2031-06-01 | M116: 103 | N116: 13,820.29 | O116: 39.16 | P116: 749.47 | Q116: 788.63 | R116: 13,070.82
A117: 2031-07-01 | B117: 104 | C117: 18,275.33 | D117: 51.78 | E117: 1,050.86 | F117: 1,102.64 | G117: 17,224.47 | L117: 2031-07-01 | M117: 104 | N117: 13,070.82 | O117: 37.03 | P117: 751.59 | Q117: 788.63 | R117: 12,319.23
A118: 2031-08-01 | B118: 105 | C118: 17,224.47 | D118: 48.80 | E118: 1,053.84 | F118: 1,102.64 | G118: 16,170.64 | L118: 2031-08-01 | M118: 105 | N118: 12,319.23 | O118: 34.90 | P118: 753.72 | Q118: 788.63 | R118: 11,565.51
A119: 2031-09-01 | B119: 106 | C119: 16,170.64 | D119: 45.82 | E119: 1,056.82 | F119: 1,102.64 | G119: 15,113.82 | L119: 2031-09-01 | M119: 106 | N119: 11,565.51 | O119: 32.77 | P119: 755.86 | Q119: 788.63 | R119: 10,809.65
A120: 2031-10-01 | B120: 107 | C120: 15,113.82 | D120: 42.82 | E120: 1,059.82 | F120: 1,102.64 | G120: 14,054.00 | L120: 2031-10-01 | M120: 107 | N120: 10,809.65 | O120: 30.63 | P120: 758.00 | Q120: 788.63 | R120: 10,051.65
A121: 2031-11-01 | B121: 108 | C121: 14,054.00 | D121: 39.82 | E121: 1,062.82 | F121: 1,102.64 | G121: 12,991.18 | L121: 2031-11-01 | M121: 108 | N121: 10,051.65 | O121: 28.48 | P121: 760.15 | Q121: 788.63 | R121: 9,291.50
A122: 2031-12-01 | B122: 109 | C122: 12,991.18 | D122: 36.81 | E122: 1,065.83 | F122: 1,102.64 | G122: 11,925.35 | L122: 2031-12-01 | M122: 109 | N122: 9,291.50 | O122: 26.33 | P122: 762.30 | Q122: 788.63 | R122: 8,529.20
A123: 2032-01-01 | B123: 110 | C123: 11,925.35 | D123: 33.79 | E123: 1,068.85 | F123: 1,102.64 | G123: 10,856.50 | L123: 2032-01-01 | M123: 110 | N123: 8,529.20 | O123: 24.17 | P123: 764.46 | Q123: 788.63 | R123: 7,764.74
A124: 2032-02-01 | B124: 111 | C124: 10,856.50 | D124: 30.76 | E124: 1,071.88 | F124: 1,102.64 | G124: 9,784.62 | L124: 2032-02-01 | M124: 111 | N124: 7,764.74 | O124: 22.00 | P124: 766.63 | Q124: 788.63 | R124: 6,998.12
A125: 2032-03-01 | B125: 112 | C125: 9,784.62 | D125: 27.72 | E125: 1,074.92 | F125: 1,102.64 | G125: 8,709.70 | L125: 2032-03-01 | M125: 112 | N125: 6,998.12 | O125: 19.83 | P125: 768.80 | Q125: 788.63 | R125: 6,229.32
A126: 2032-04-01 | B126: 113 | C126: 8,709.70 | D126: 24.68 | E126: 1,077.96 | F126: 1,102.64 | G126: 7,631.74 | L126: 2032-04-01 | M126: 113 | N126: 6,229.32 | O126: 17.65 | P126: 770.98 | Q126: 788.63 | R126: 5,458.34
A127: 2032-05-01 | B127: 114 | C127: 7,631.74 | D127: 21.62 | E127: 1,081.02 | F127: 1,102.64 | G127: 6,550.72 | L127: 2032-05-01 | M127: 114 | N127: 5,458.34 | O127: 15.47 | P127: 773.16 | Q127: 788.63 | R127: 4,685.18
A128: 2032-06-01 | B128: 115 | C128: 6,550.72 | D128: 18.56 | E128: 1,084.08 | F128: 1,102.64 | G128: 5,466.64 | L128: 2032-06-01 | M128: 115 | N128: 4,685.18 | O128: 13.27 | P128: 775.35 | Q128: 788.63 | R128: 3,909.83
A129: 2032-07-01 | B129: 116 | C129: 5,466.64 | D129: 15.49 | E129: 1,087.15 | F129: 1,102.64 | G129: 4,379.49 | L129: 2032-07-01 | M129: 116 | N129: 3,909.83 | O129: 11.08 | P129: 777.55 | Q129: 788.63 | R129: 3,132.28
A130: 2032-08-01 | B130: 117 | C130: 4,379.49 | D130: 12.41 | E130: 1,090.23 | F130: 1,102.64 | G130: 3,289.26 | L130: 2032-08-01 | M130: 117 | N130: 3,132.28 | O130: 8.87 | P130: 779.75 | Q130: 788.63 | R130: 2,352.53
A131: 2032-09-01 | B131: 118 | C131: 3,289.26 | D131: 9.32 | E131: 1,093.32 | F131: 1,102.64 | G131: 2,195.94 | L131: 2032-09-01 | M131: 118 | N131: 2,352.53 | O131: 6.67 | P131: 781.96 | Q131: 788.63 | R131: 1,570.57
A132: 2032-10-01 | B132: 119 | C132: 2,195.94 | D132: 6.22 | E132: 1,096.42 | F132: 1,102.64 | G132: 1,099.52 | L132: 2032-10-01 | M132: 119 | N132: 1,570.57 | O132: 4.45 | P132: 784.18 | Q132: 788.63 | R132: 786.40
A133: 2032-11-01 | B133: 120 | C133: 1,099.52 | D133: 3.12 | E133: =C133-E9 -> 1,099.52 | F133: =D133+E133 -> 1,102.64 | G133: 0.00 | L133: 2032-11-01 | M133: 120 | N133: 786.40 | O133: 2.23 | P133: =N133-P9 -> 786.40 | Q133: =O133+P133 -> 788.63 | R133: 0.00
